Workbook

Sheet Anwendung
B2: Eingabe | K2: System
B4: stat. System: | J4: F = | K4: =CONCATENATE(H12, " [kN]") -> 1 [kN]
B6: Einflusslinie:
B8: für Schnitt: | H8: ='GD1'!K10 -> 6 | I8: von | J8: ='GD1'!E11 -> 16 | N8: L = 6,0 m | R8: =IF(AND('GD1'!D10>1,'GD1'!D10<4),"L = 2,0 m","") -> L = 2,0 m | S8: =IF('GD1'!D10=4,"L = 6,0 m","") ->  | T8: =IF('GD1'!D10=3,"L = 4,0 m","") -> 
B9: (roter Strich)
E10: =IF('GD1'!J10=2,"Schnitt rastet bei nächster Auflagerachse ein!","") ->  | K10: A = | L10: 1 | P10: B = | Q10: 0 | T10: =IF('GD1'!D10>2,"C =","") -> 
B12: Lastfaktor: | H12: ='GD1'!D12-100 -> 1 | K12: Lastposition: | Q12: Last in Schnitt: | S12: ='GD1'!D11 -> 0 | T12: von | U12: =J8 -> 16
B15: Einflusslinie | D15: für | E15: ='GD1'!J14 -> Biegemoment | G15: =CONCATENATE("im Schnitt ",H8) -> im Schnitt 6 | K15: Schnittgrößenverlauf | O15: =IF('GD1'!J10=1,"Biegemoment","Querkraft") -> Biegemoment | Q15: =IF('GD1'!D13=1,"in [kNm]","in [kN]") -> in [kNm]

Sheet SG
A1: 1 | B1: 2 | C1: 3 | D1: 4 | E1: 5 | F1: 6 | G1: 7 | H1: 8 | I1: 9 | J1: 10 | K1: 11 | L1: 12 | M1: 13 | N1: 14 | O1: 15 | P1: 16 | Q1: 17 | R1: 18 | S1: 19 | T1: 20 | U1: 21 | V1: 22 | W1: 23 | X1: 24 | Y1: 25 | Z1: 26 | AA1: 27 | AB1: 28 | AC1: 29 | AD1: 30 | AE1: 31 | AF1: 32 | AG1: 33 | AH1: 34 | AI1: 35 | AJ1: 36 | AK1: 37 | AL1: 38 | AM1: 39 | AN1: 40 | AO1: 41 | AP1: 42 | AQ1: 43 | AR1: 44 | AS1: 45 | AT1: 46 | AU1: 47 | AV1: 48 | AW1: 49 | AX1: 50 | AY1: 51 | AZ1: 52 | BA1: 53 | BB1: 54 | BC1: 55 | BD1: 56 | BE1: 57 | BF1: 58 | BG1: 59 | BH1: 60 | BI1: 61 | BJ1: 62 | BK1: 63 | BL1: 64 | BM1: 65 | BN1: 66 | BO1: 67 | BP1: 68 | BQ1: 69 | BR1: 70 | BS1: 71 | BT1: 72 | BU1: 73 | BV1: 74 | BW1: 75 | BX1: 76 | BY1: 77 | BZ1: 78 | CA1: 79 | CB1: 80 | CC1: 81 | CD1: 82 | CE1: 83 | CF1: 84 | CG1: 85 | CH1: 86 | CI1: 87 | CJ1: 88 | CK1: 89 | CL1: 90 | CM1: 91 | CN1: 92 | CO1: 93 | CP1: 94 | CQ1: 95 | CR1: 96 | CS1: 97 | CT1: 98 | CU1: 99 | CV1: 100 | CW1: 101 | CX1: 102 | CY1: 103 | CZ1: 104
B2: System 1 | U2: System 2 | AR2: System 3 | BW2: System 4
B4: Biegemomente | E4: F = | F4: ='GD1'!$F$12 -> 1 | U4: Biegemomente | X4: F = | Y4: ='GD1'!$F$12 -> 1 | AR4: Biegemomente | AU4: F = | AV4: ='GD1'!$F$12 -> 1 | BW4: Biegemomente | BZ4: F = | CA4: ='GD1'!$F$12 -> 1
B5: Schn. | C5: a | D5: 0 | E5: 0.5 | F5: 1 | G5: 1.5 | H5: 2 | I5: 2.5 | J5: 3 | K5: 3.5 | L5: 4 | M5: 4.5 | N5: 5 | O5: 5.5 | P5: 6 | U5: Schn. | V5: a | W5: 0 | X5: 0.5 | Y5: 1 | Z5: 1.5 | AA5: 2 | AB5: 2.5 | AC5: 3 | AD5: 3.5 | AE5: 4 | AF5: 4.5 | AG5: 5 | AH5: 5.5 | AI5: 6 | AJ5: 6.5 | AK5: 7 | AL5: 7.5 | AM5: 8 | AR5: Schn. | AS5: a | AT5: 0 | AU5: 0.5 | AV5: 1 | AW5: 1.5 | AX5: 2 | AY5: 2.5 | AZ5: 3 | BA5: 3.5 | BB5: 4 | BC5: 4.5 | BD5: 5 | BE5: 5.5 | BF5: 6 | BG5: 6.5 | BH5: 7 | BI5: 7.5 | BJ5: 8 | BK5: 8.5 | BL5: 9 | BM5: 9.5 | BN5: 10 | BO5: 10.5 | BP5: 11 | BQ5: 11.5 | BR5: 12 | BW5: Schn. | BX5: a | BY5: 0 | BZ5: 0.5 | CA5: 1 | CB5: 1.5 | CC5: 2 | CD5: 2.5 | CE5: 3 | CF5: 3.5 | CG5: 4 | CH5: 4.5 | CI5: 5 | CJ5: 5.5 | CK5: 6 | CL5: 6.5 | CM5: 7 | CN5: 7.5 | CO5: 8 | CP5: 8.5 | CQ5: 9 | CR5: 9.5 | CS5: 10 | CT5: 10.5 | CU5: 11 | CV5: 11.5 | CW5: 12
B6: 0 | C6: 0 | D6: =IF($C6<=D$5,D$34*$C6,D$35*(6-$C6)) -> 0 | E6: 0 | F6: 0 | G6: 0 | H6: 0 | I6: 0 | J6: 0 | K6: 0 | L6: 0 | M6: 0 | N6: 0 | O6: 0 | P6: 0 | U6: 0 | V6: 0 | W6: =IF($V6<=W$5,W$34*$V6,W$35*(6-$V6)) -> 0 | X6: 0 | Y6: 0 | Z6: 0 | AA6: 0 | AB6: 0 | AC6: 0 | AD6: 0 | AE6: 0 | AF6: 0 | AG6: 0 | AH6: 0 | AI6: 0 | AJ6: =AJ$34*$V6 -> 0 | AK6: 0 | AL6: 0 | AM6: 0 | AR6: 0 | AS6: 0 | AT6: =IF($V6<=AT$5,AT$34*$V6,AT$35*(6-$V6)) -> 0 | AU6: 0 | AV6: 0 | AW6: 0 | AX6: 0 | AY6: 0 | AZ6: 0 | BA6: 0 | BB6: 0 | BC6: 0 | BD6: 0 | BE6: 0 | BF6: 0 | BG6: =BG$34*$V6 -> 0 | BH6: 0 | BI6: 0 | BJ6: 0 | BK6: =$BJ6*(4-(BK$5-8))/4 -> 0 | BL6: =$BJ6*(4-(BL$5-8))/4 -> 0 | BM6: 0 | BN6: 0 | BO6: 0 | BP6: 0 | BQ6: 0 | BR6: 0 | BW6: 0 | BX6: 0 | BY6: 0 | BZ6: =BZ$34*$BX6 -> 0 | CA6: 0 | CB6: 0 | CC6: 0 | CD6: 0 | CE6: 0 | CF6: 0 | CG6: 0 | CH6: 0 | CI6: 0 | CJ6: 0 | CK6: 0 | CL6: =CL$34*$BX6 -> 0 | CM6: 0 | CN6: 0 | CO6: 0 | CP6: 0 | CQ6: 0 | CR6: 0 | CS6: 0 | CT6: 0 | CU6: 0 | CV6: 0 | CW6: 0
B7: 1 | C7: 0.5 | D7: 0 | E7: 0.4583333333 | F7: 0.4166666667 | G7: 0.375 | H7: 0.3333333333 | I7: 0.2916666667 | J7: 0.25 | K7: 0.2083333333 | L7: 0.1666666667 | M7: 0.125 | N7: 0.08333333333 | O7: 0.04166666667 | P7: 0 | U7: 1 | V7: 0.5 | W7: 0 | X7: 0.4583333333 | Y7: 0.4166666667 | Z7: 0.375 | AA7: 0.3333333333 | AB7: 0.2916666667 | AC7: 0.25 | AD7: 0.2083333333 | AE7: 0.1666666667 | AF7: 0.125 | AG7: 0.08333333333 | AH7: 0.04166666667 | AI7: 0 | AJ7: -0.04166666667 | AK7: -0.08333333333 | AL7: -0.125 | AM7: -0.1666666667 | AR7: 1 | AS7: 0.5 | AT7: 0 | AU7: 0.4583333333 | AV7: 0.4166666667 | AW7: 0.375 | AX7: 0.3333333333 | AY7: 0.2916666667 | AZ7: 0.25 | BA7: 0.2083333333 | BB7: 0.1666666667 | BC7: 0.125 | BD7: 0.08333333333 | BE7: 0.04166666667 | BF7: 0 | BG7: -0.04166666667 | BH7: -0.08333333333 | BI7: -0.125 | BJ7: -0.1666666667 | BK7: =$BJ7*(4-(BK$5-8))/4 -> -0.1458333333 | BL7: -0.125 | BM7: -0.1041666667 | BN7: -0.08333333333 | BO7: -0.0625 | BP7: -0.04166666667 | BQ7: -0.02083333333 | BR7: 0 | BW7: 1 | BX7: 0.5 | BY7: 0 | BZ7: 0.44799 | CA7: 0.39641 | CB7: 0.345705 | CC7: 0.296295 | CD7: 0.248625 | CE7: 0.203125 | CF7: 0.16023 | CG7: 0.12037 | CH7: 0.083985 | CI7: 0.051505 | CJ7: 0.023365 | CK7: 0 | CL7: -0.0183 | CM7: -0.03183 | CN7: -0.041015 | CO7: -0.046295 | CP7: -0.048105 | CQ7: -0.046875 | CR7: -0.04304 | CS7: -0.037035 | CT7: -0.029295 | CU7: -0.020255 | CV7: -0.010345 | CW7: 0
B8: 2 | C8: 1 | D8: 0 | E8: 0.4166666667 | F8: 0.8333333333 | G8: 0.75 | H8: 0.6666666667 | I8: 0.5833333333 | J8: 0.5 | K8: 0.4166666667 | L8: 0.3333333333 | M8: 0.25 | N8: 0.1666666667 | O8: 0.08333333333 | P8: 0 | U8: 2 | V8: 1 | W8: 0 | X8: 0.4166666667 | Y8: 0.8333333333 | Z8: 0.75 | AA8: 0.6666666667 | AB8: 0.5833333333 | AC8: 0.5 | AD8: 0.4166666667 | AE8: 0.3333333333 | AF8: 0.25 | AG8: 0.1666666667 | AH8: 0.08333333333 | AI8: 0 | AJ8: -0.08333333333 | AK8: -0.1666666667 | AL8: -0.25 | AM8: -0.3333333333 | AR8: 2 | AS8: 1 | AT8: 0 | AU8: 0.4166666667 | AV8: 0.8333333333 | AW8: 0.75 | AX8: 0.6666666667 | AY8: 0.5833333333 | AZ8: 0.5 | BA8: 0.4166666667 | BB8: 0.3333333333 | BC8: 0.25 | BD8: 0.1666666667 | BE8: 0.08333333333 | BF8: 0 | BG8: -0.08333333333 | BH8: -0.1666666667 | BI8: -0.25 | BJ8: -0.3333333333 | BK8: -0.2916666667 | BL8: -0.25 | BM8: -0.2083333333 | BN8: -0.1666666667 | BO8: -0.125 | BP8: -0.08333333333 | BQ8: -0.04166666667 | BR8: 0 | BW8: 2 | BX8: 1 | BY8: 0 | BZ8: =BZ$34*$BX8-($BX8-BZ$5)*$CA$4 -> 0.39598 | CA8: 0.79282 | CB8: 0.69141 | CC8: 0.59259 | CD8: 0.49725 | CE8: 0.40625 | CF8: 0.32046 | CG8: 0.24074 | CH8: 0.16797 | CI8: 0.10301 | CJ8: 0.04673 | CK8: 0 | CL8: -0.0366 | CM8: -0.06366 | CN8: -0.08203 | CO8: -0.09259 | CP8: -0.09621 | CQ8: -0.09375 | CR8: -0.08608 | CS8: -0.07407 | CT8: -0.05859 | CU8: -0.04051 | CV8: -0.02069 | CW8: 0
B9: 3 | C9: 1.5 | D9: 0 | E9: 0.375 | F9: 0.75 | G9: 1.125 | H9: 1 | I9: 0.875 | J9: 0.75 | K9: 0.625 | L9: 0.5 | M9: 0.375 | N9: 0.25 | O9: 0.125 | P9: 0 | U9: 3 | V9: 1.5 | W9: 0 | X9: 0.375 | Y9: 0.75 | Z9: 1.125 | AA9: 1 | AB9: 0.875 | AC9: 0.75 | AD9: 0.625 | AE9: 0.5 | AF9: 0.375 | AG9: 0.25 | AH9: 0.125 | AI9: 0 | AJ9: -0.125 | AK9: -0.25 | AL9: -0.375 | AM9: -0.5 | AR9: 3 | AS9: 1.5 | AT9: 0 | AU9: 0.375 | AV9: 0.75 | AW9: 1.125 | AX9: 1 | AY9: 0.875 | AZ9: 0.75 | BA9: 0.625 | BB9: 0.5 | BC9: 0.375 | BD9: 0.25 | BE9: 0.125 | BF9: 0 | BG9: -0.125 | BH9: -0.25 | BI9: -0.375 | BJ9: -0.5 | BK9: -0.4375 | BL9: -0.375 | BM9: -0.3125 | BN9: -0.25 | BO9: -0.1875 | BP9: -0.125 | BQ9: -0.0625 | BR9: 0 | BW9: 3 | BX9: 1.5 | BY9: 0 | BZ9: =BZ$34*$BX9-($BX9-BZ$5)*$CA$4 -> 0.34397 | CA9: =CA$34*$BX9-($BX9-CA$5)*$CA$4 -> 0.68923 | CB9: 1.037115 | CC9: 0.888885 | CD9: 0.745875 | CE9: 0.609375 | CF9: 0.48069 | CG9: 0.36111 | CH9: 0.251955 | CI9: 0.154515 | CJ9: 0.070095 | CK9: 0 | CL9: -0.0549 | CM9: -0.09549 | CN9: -0.123045 | CO9: -0.138885 | CP9: -0.144315 | CQ9: -0.140625 | CR9: -0.12912 | CS9: -0.111105 | CT9: -0.087885 | CU9: -0.060765 | CV9: -0.031035 | CW9: 0
B10: 4 | C10: 2 | D10: 0 | E10: 0.3333333333 | F10: 0.6666666667 | G10: 1 | H10: 1.333333333 | I10: 1.166666667 | J10: 1 | K10: 0.8333333333 | L10: 0.6666666667 | M10: 0.5 | N10: 0.3333333333 | O10: 0.1666666667 | P10: 0 | U10: 4 | V10: 2 | W10: 0 | X10: 0.3333333333 | Y10: 0.6666666667 | Z10: 1 | AA10: 1.333333333 | AB10: 1.166666667 | AC10: 1 | AD10: 0.8333333333 | AE10: 0.6666666667 | AF10: 0.5 | AG10: 0.3333333333 | AH10: 0.1666666667 | AI10: 0 | AJ10: -0.1666666667 | AK10: -0.3333333333 | AL10: -0.5 | AM10: -0.6666666667 | AR10: 4 | AS10: 2 | AT10: 0 | AU10: 0.3333333333 | AV10: 0.6666666667 | AW10: 1 | AX10: 1.333333333 | AY10: 1.166666667 | AZ10: 1 | BA10: 0.8333333333 | BB10: 0.6666666667 | BC10: 0.5 | BD10: 0.3333333333 | BE10: 0.1666666667 | BF10: 0 | BG10: -0.1666666667 | BH10: -0.3333333333 | BI10: -0.5 | BJ10: -0.6666666667 | BK10: -0.5833333333 | BL10: -0.5 | BM10: -0.4166666667 | BN10: -0.3333333333 | BO10: -0.25 | BP10: -0.1666666667 | BQ10: -0.08333333333 | BR10: 0 | BW10: 4 | BX10: 2 | BY10: 0 | BZ10: 0.29196 | CA10: 0.58564 | CB10: 0.88282 | CC10: 1.18518 | CD10: 0.9945 | CE10: 0.8125 | CF10: 0.64092 | CG10: 0.48148 | CH10: 0.33594 | CI10: 0.20602 | CJ10: 0.09346 | CK10: 0 | CL10: -0.0732 | CM10: -0.12732 | CN10: -0.16406 | CO10: -0.18518 | CP10: -0.19242 | CQ10: -0.1875 | CR10: -0.17216 | CS10: -0.14814 | CT10: -0.11718 | CU10: -0.08102 | CV10: -0.04138 | CW10: 0
B11: 5 | C11: 2.5 | D11: 0 | E11: 0.2916666667 | F11: 0.5833333333 | G11: 0.875 | H11: 1.166666667 | I11: 1.458333333 | J11: 1.25 | K11: 1.041666667 | L11: 0.8333333333 | M11: 0.625 | N11: 0.4166666667 | O11: 0.2083333333 | P11: 0 | U11: 5 | V11: 2.5 | W11: 0 | X11: 0.2916666667 | Y11: 0.5833333333 | Z11: 0.875 | AA11: 1.166666667 | AB11: 1.458333333 | AC11: 1.25 | AD11: 1.041666667 | AE11: 0.8333333333 | AF11: 0.625 | AG11: 0.4166666667 | AH11: 0.2083333333 | AI11: 0 | AJ11: -0.2083333333 | AK11: -0.4166666667 | AL11: -0.625 | AM11: -0.8333333333 | AR11: 5 | AS11: 2.5 | AT11: 0 | AU11: 0.2916666667 | AV11: 0.5833333333 | AW11: 0.875 | AX11: 1.166666667 | AY11: 1.458333333 | AZ11: 1.25 | BA11: 1.041666667 | BB11: 0.8333333333 | BC11: 0.625 | BD11: 0.4166666667 | BE11: 0.2083333333 | BF11: 0 | BG11: -0.2083333333 | BH11: -0.4166666667 | BI11: -0.625 | BJ11: -0.8333333333 | BK11: -0.7291666667 | BL11: -0.625 | BM11: -0.5208333333 | BN11: -0.4166666667 | BO11: -0.3125 | BP11: -0.2083333333 | BQ11: -0.1041666667 | BR11: 0 | BW11: 5 | BX11: 2.5 | BY11: 0 | BZ11: 0.23995 | CA11: 0.48205 | CB11: 0.728525 | CC11: 0.981475 | CD11: 1.243125 | CE11: 1.015625 | CF11: 0.80115 | CG11: 0.60185 | CH11: 0.419925 | CI11: 0.257525 | CJ11: 0.116825 | CK11: 0 | CL11: -0.0915 | CM11: -0.15915 | CN11: -0.205075 | CO11: -0.231475 | CP11: -0.240525 | CQ11: -0.234375 | CR11: -0.2152 | CS11: -0.185175 | CT11: -0.146475 | CU11: -0.101275 | CV11: -0.051725 | CW11: 0
B12: 6 | C12: 3 | D12: 0 | E12: 0.25 | F12: 0.5 | G12: 0.75 | H12: 1 | I12: 1.25 | J12: 1.5 | K12: 1.25 | L12: 1 | M12: 0.75 | N12: 0.5 | O12: 0.25 | P12: 0 | U12: 6 | V12: 3 | W12: 0 | X12: 0.25 | Y12: 0.5 | Z12: 0.75 | AA12: 1 | AB12: 1.25 | AC12: 1.5 | AD12: 1.25 | AE12: 1 | AF12: 0.75 | AG12: 0.5 | AH12: 0.25 | AI12: 0 | AJ12: -0.25 | AK12: -0.5 | AL12: -0.75 | AM12: -1 | AR12: 6 | AS12: 3 | AT12: 0 | AU12: 0.25 | AV12: 0.5 | AW12: 0.75 | AX12: 1 | AY12: 1.25 | AZ12: 1.5 | BA12: 1.25 | BB12: 1 | BC12: 0.75 | BD12: 0.5 | BE12: 0.25 | BF12: 0 | BG12: -0.25 | BH12: -0.5 | BI12: -0.75 | BJ12: -1 | BK12: -0.875 | BL12: -0.75 | BM12: -0.625 | BN12: -0.5 | BO12: -0.375 | BP12: -0.25 | BQ12: -0.125 | BR12: 0 | BW12: 6 | BX12: 3 | BY12: 0 | BZ12: 0.18794 | CA12: 0.37846 | CB12: 0.57423 | CC12: 0.77777 | CD12: 0.99175 | CE12: 1.21875 | CF12: 0.96138 | CG12: 0.72222 | CH12: 0.50391 | CI12: 0.30903 | CJ12: 0.14019 | CK12: 0 | CL12: -0.1098 | CM12: -0.19098 | CN12: -0.24609 | CO12: -0.27777 | CP12: -0.28863 | CQ12: -0.28125 | CR12: -0.25824 | CS12: -0.22221 | CT12: -0.17577 | CU12: -0.12153 | CV12: -0.06207 | CW12: 0
B13: 7 | C13: 3.5 | D13: 0 | E13: 0.2083333333 | F13: 0.4166666667 | G13: 0.625 | H13: 0.8333333333 | I13: 1.041666667 | J13: 1.25 | K13: 1.458333333 | L13: 1.166666667 | M13: 0.875 | N13: 0.5833333333 | O13: 0.2916666667 | P13: 0 | U13: 7 | V13: 3.5 | W13: 0 | X13: 0.2083333333 | Y13: 0.4166666667 | Z13: 0.625 | AA13: 0.8333333333 | AB13: 1.041666667 | AC13: 1.25 | AD13: 1.458333333 | AE13: 1.166666667 | AF13: 0.875 | AG13: 0.5833333333 | AH13: 0.2916666667 | AI13: 0 | AJ13: -0.2916666667 | AK13: -0.5833333333 | AL13: -0.875 | AM13: -1.166666667 | AR13: 7 | AS13: 3.5 | AT13: 0 | AU13: 0.2083333333 | AV13: 0.4166666667 | AW13: 0.625 | AX13: 0.8333333333 | AY13: 1.041666667 | AZ13: 1.25 | BA13: 1.458333333 | BB13: 1.166666667 | BC13: 0.875 | BD13: 0.5833333333 | BE13: 0.2916666667 | BF13: 0 | BG13: -0.2916666667 | BH13: -0.5833333333 | BI13: -0.875 | BJ13: -1.166666667 | BK13: -1.020833333 | BL13: -0.875 | BM13: -0.7291666667 | BN13: -0.5833333333 | BO13: -0.4375 | BP13: -0.2916666667 | BQ13: -0.1458333333 | BR13: 0 | BW13: 7 | BX13: 3.5 | BY13: 0 | BZ13: 0.13593 | CA13: 0.27487 | CB13: 0.419935 | CC13: 0.574065 | CD13: 0.740375 | CE13: 0.921875 | CF13: 1.12161 | CG13: 0.84259 | CH13: 0.587895 | CI13: 0.360535 | CJ13: 0.163555 | CK13: 0 | CL13: -0.1281 | CM13: -0.22281 | CN13: -0.287105 | CO13: -0.324065 | CP13: -0.336735 | CQ13: -0.328125 | CR13: -0.30128 | CS13: -0.259245 | CT13: -0.205065 | CU13: -0.141785 | CV13: -0.072415 | CW13: 0
B14: 8 | C14: 4 | D14: 0 | E14: 0.1666666667 | F14: 0.3333333333 | G14: 0.5 | H14: 0.6666666667 | I14: 0.8333333333 | J14: 1 | K14: 1.166666667 | L14: 1.333333333 | M14: 1 | N14: 0.6666666667 | O14: 0.3333333333 | P14: 0 | U14: 8 | V14: 4 | W14: 0 | X14: 0.1666666667 | Y14: 0.3333333333 | Z14: 0.5 | AA14: 0.6666666667 | AB14: 0.8333333333 | AC14: 1 | AD14: 1.166666667 | AE14: 1.333333333 | AF14: 1 | AG14: 0.6666666667 | AH14: 0.3333333333 | AI14: 0 | AJ14: -0.3333333333 | AK14: -0.6666666667 | AL14: -1 | AM14: -1.333333333 | AR14: 8 | AS14: 4 | AT14: 0 | AU14: 0.1666666667 | AV14: 0.3333333333 | AW14: 0.5 | AX14: 0.6666666667 | AY14: 0.8333333333 | AZ14: 1 | BA14: 1.166666667 | BB14: 1.333333333 | BC14: 1 | BD14: 0.6666666667 | BE14: 0.3333333333 | BF14: 0 | BG14: -0.3333333333 | BH14: -0.6666666667 | BI14: -1 | BJ14: -1.333333333 | BK14: -1.166666667 | BL14: -1 | BM14: -0.8333333333 | BN14: -0.6666666667 | BO14: -0.5 | BP14: -0.3333333333 | BQ14: -0.1666666667 | BR14: 0 | BW14: 8 | BX14: 4 | BY14: 0 | BZ14: 0.08392 | CA14: 0.17128 | CB14: 0.26564 | CC14: 0.37036 | CD14: 0.489 | CE14: 0.625 | CF14: 0.78184 | CG14: 0.96296 | CH14: 0.67188 | CI14: 0.41204 | CJ14: 0.18692 | CK14: 0 | CL14: -0.1464 | CM14: -0.25464 | CN14: -0.32812 | CO14: -0.37036 | CP14: -0.38484 | CQ14: -0.375 | CR14: -0.34432 | CS14: -0.29628 | CT14: -0.23436 | CU14: -0.16204 | CV14: -0.08276 | CW14: 0
B15: 9 | C15: 4.5 | D15: 0 | E15: 0.125 | F15: 0.25 | G15: 0.375 | H15: 0.5 | I15: 0.625 | J15: 0.75 | K15: 0.875 | L15: 1 | M15: 1.125 | N15: 0.75 | O15: 0.375 | P15: 0 | U15: 9 | V15: 4.5 | W15: 0 | X15: 0.125 | Y15: 0.25 | Z15: 0.375 | AA15: 0.5 | AB15: 0.625 | AC15: 0.75 | AD15: 0.875 | AE15: 1 | AF15: 1.125 | AG15: 0.75 | AH15: 0.375 | AI15: 0 | AJ15: -0.375 | AK15: -0.75 | AL15: -1.125 | AM15: -1.5 | AR15: 9 | AS15: 4.5 | AT15: 0 | AU15: 0.125 | AV15: 0.25 | AW15: 0.375 | AX15: 0.5 | AY15: 0.625 | AZ15: 0.75 | BA15: 0.875 | BB15: 1 | BC15: 1.125 | BD15: 0.75 | BE15: 0.375 | BF15: 0 | BG15: -0.375 | BH15: -0.75 | BI15: -1.125 | BJ15: -1.5 | BK15: -1.3125 | BL15: -1.125 | BM15: -0.9375 | BN15: -0.75 | BO15: -0.5625 | BP15: -0.375 | BQ15: -0.1875 | BR15: 0 | BW15: 9 | BX15: 4.5 | BY15: 0 | BZ15: 0.03191 | CA15: 0.06769 | CB15: 0.111345 | CC15: 0.166655 | CD15: 0.237625 | CE15: 0.328125 | CF15: 0.44207 | CG15: 0.58333 | CH15: 0.755865 | CI15: 0.463545 | CJ15: 0.210285 | CK15: 0 | CL15: -0.1647 | CM15: -0.28647 | CN15: -0.369135 | CO15: -0.416655 | CP15: -0.432945 | CQ15: -0.421875 | CR15: -0.38736 | CS15: -0.333315 | CT15: -0.263655 | CU15: -0.182295 | CV15: -0.093105 | CW15: 0
B16: 10 | C16: 5 | D16: 0 | E16: 0.08333333333 | F16: 0.1666666667 | G16: 0.25 | H16: 0.3333333333 | I16: 0.4166666667 | J16: 0.5 | K16: 0.5833333333 | L16: 0.6666666667 | M16: 0.75 | N16: 0.8333333333 | O16: 0.4166666667 | P16: 0 | U16: 10 | V16: 5 | W16: 0 | X16: 0.08333333333 | Y16: 0.1666666667 | Z16: 0.25 | AA16: 0.3333333333 | AB16: 0.4166666667 | AC16: 0.5 | AD16: 0.5833333333 | AE16: 0.6666666667 | AF16: 0.75 | AG16: 0.8333333333 | AH16: 0.4166666667 | AI16: 0 | AJ16: -0.4166666667 | AK16: -0.8333333333 | AL16: -1.25 | AM16: -1.666666667 | AR16: 10 | AS16: 5 | AT16: 0 | AU16: 0.08333333333 | AV16: 0.1666666667 | AW16: 0.25 | AX16: 0.3333333333 | AY16: 0.4166666667 | AZ16: 0.5 | BA16: 0.5833333333 | BB16: 0.6666666667 | BC16: 0.75 | BD16: 0.8333333333 | BE16: 0.4166666667 | BF16: 0 | BG16: -0.4166666667 | BH16: -0.8333333333 | BI16: -1.25 | BJ16: -1.666666667 | BK16: -1.458333333 | BL16: -1.25 | BM16: -1.041666667 | BN16: -0.8333333333 | BO16: -0.625 | BP16: -0.4166666667 | BQ16: -0.2083333333 | BR16: 0 | BW16: 10 | BX16: 5 | BY16: 0 | BZ16: -0.0201 | CA16: -0.0359 | CB16: -0.04295 | CC16: -0.03705 | CD16: -0.01375 | CE16: 0.03125 | CF16: 0.1023 | CG16: 0.2037 | CH16: 0.33985 | CI16: 0.51505 | CJ16: 0.23365 | CK16: 0 | CL16: -0.183 | CM16: -0.3183 | CN16: -0.41015 | CO16: -0.46295 | CP16: -0.48105 | CQ16: -0.46875 | CR16: -0.4304 | CS16: -0.37035 | CT16: -0.29295 | CU16: -0.20255 | CV16: -0.10345 | CW16: 0
B17: 11 | C17: 5.5 | D17: 0 | E17: 0.04166666667 | F17: 0.08333333333 | G17: 0.125 | H17: 0.1666666667 | I17: 0.2083333333 | J17: 0.25 | K17: 0.2916666667 | L17: 0.3333333333 | M17: 0.375 | N17: 0.4166666667 | O17: 0.4583333333 | P17: 0 | U17: 11 | V17: 5.5 | W17: 0 | X17: 0.04166666667 | Y17: 0.08333333333 | Z17: 0.125 | AA17: 0.1666666667 | AB17: 0.2083333333 | AC17: 0.25 | AD17: 0.2916666667 | AE17: 0.3333333333 | AF17: 0.375 | AG17: 0.4166666667 | AH17: 0.4583333333 | AI17: 0 | AJ17: -0.4583333333 | AK17: -0.9166666667 | AL17: -1.375 | AM17: -1.833333333 | AR17: 11 | AS17: 5.5 | AT17: 0 | AU17: 0.04166666667 | AV17: 0.08333333333 | AW17: 0.125 | AX17: 0.1666666667 | AY17: 0.2083333333 | AZ17: 0.25 | BA17: 0.2916666667 | BB17: 0.3333333333 | BC17: 0.375 | BD17: 0.4166666667 | BE17: 0.4583333333 | BF17: 0 | BG17: -0.4583333333 | BH17: -0.9166666667 | BI17: -1.375 | BJ17: -1.833333333 | BK17: -1.604166667 | BL17: -1.375 | BM17: -1.145833333 | BN17: -0.9166666667 | BO17: -0.6875 | BP17: -0.4583333333 | BQ17: -0.2291666667 | BR17: 0 | BW17: 11 | BX17: 5.5 | BY17: 0 | BZ17: -0.07211 | CA17: -0.13949 | CB17: -0.197245 | CC17: -0.240755 | CD17: -0.265125 | CE17: -0.265625 | CF17: -0.23747 | CG17: -0.17593 | CH17: -0.076165 | CI17: 0.066555 | CJ17: 0.257015 | CK17: 0 | CL17: -0.2013 | CM17: -0.35013 | CN17: -0.451165 | CO17: -0.509245 | CP17: -0.529155 | CQ17: -0.515625 | CR17: -0.47344 | CS17: -0.407385 | CT17: -0.322245 | CU17: -0.222805 | CV17: -0.113795 | CW17: 0
B18: 12 | C18: 6 | D18: 0 | E18: 0 | F18: 0 | G18: 0 | H18: 0 | I18: 0 | J18: 0 | K18: 0 | L18: 0 | M18: 0 | N18: 0 | O18: 0 | P18: 0 | U18: 12 | V18: 6 | W18: 0 | X18: 0 | Y18: 0 | Z18: 0 | AA18: 0 | AB18: 0 | AC18: 0 | AD18: 0 | AE18: 0 | AF18: 0 | AG18: 0 | AH18: 0 | AI18: 0 | AJ18: -0.5 | AK18: -1 | AL18: -1.5 | AM18: -2 | AR18: 12 | AS18: 6 | AT18: 0 | AU18: 0 | AV18: 0 | AW18: 0 | AX18: 0 | AY18: 0 | AZ18: 0 | BA18: 0 | BB18: 0 | BC18: 0 | BD18: 0 | BE18: 0 | BF18: 0 | BG18: -0.5 | BH18: -1 | BI18: -1.5 | BJ18: -2 | BK18: -1.75 | BL18: -1.5 | BM18: -1.25 | BN18: -1 | BO18: -0.75 | BP18: -0.5 | BQ18: -0.25 | BR18: 0 | BW18: 12 | BX18: 6 | BY18: 0 | BZ18: =BZ$36*($BX$30-$BX18) -> -0.12414 | CA18: =CA$36*($BX$30-$BX18) -> -0.24306 | CB18: -0.35154 | CC18: -0.44442 | CD18: -0.51648 | CE18: -0.5625 | CF18: -0.57726 | CG18: -0.55554 | CH18: -0.49218 | CI18: -0.38196 | CJ18: -0.2196 | CK18: =CK36*6 -> 0 | CL18: =CL$34*$BX18 -> -0.2196 | CM18: -0.38196 | CN18: -0.49218 | CO18: -0.55554 | CP18: -0.57726 | CQ18: -0.5625 | CR18: -0.51648 | CS18: -0.44442 | CT18: -0.35154 | CU18: -0.24306 | CV18: -0.12414 | CW18: 0
B19: 13 | U19: 13 | V19: 6.5 | W19: 0 | X19: 0 | Y19: 0 | Z19: 0 | AA19: 0 | AB19: 0 | AC19: 0 | AD19: 0 | AE19: 0 | AF19: 0 | AG19: 0 | AH19: 0 | AI19: 0 | AJ19: 0 | AK19: =$Y$4*(-AK$5+$V19) -> -0.5 | AL19: =$Y$4*(-AL$5+$V19) -> -1 | AM19: -1.5 | AR19: 13 | AS19: 6.5 | AT19: 0 | AU19: 0 | AV19: 0 | AW19: 0 | AX19: 0 | AY19: 0 | AZ19: 0 | BA19: 0 | BB19: 0 | BC19: 0 | BD19: 0 | BE19: 0 | BF19: 0 | BG19: 0 | BH19: =$AV$4*(-BH$5+$V19) -> -0.5 | BI19: =$AV$4*(-BI$5+$V19) -> -1 | BJ19: -1.5 | BK19: =($BJ19*(4-(BK$5-8))/4) -> -1.3125 | BL19: =($BJ19*(4-(BL$5-8))/4) -> -1.125 | BM19: -0.9375 | BN19: -0.75 | BO19: -0.5625 | BP19: -0.375 | BQ19: -0.1875 | BR19: 0 | BW19: 13 | BX19: 6.5 | BY19: 0 | BZ19: =BZ$36*($BX$30-$BX19) -> -0.113795 | CA19: -0.222805 | CB19: -0.322245 | CC19: -0.407385 | CD19: -0.47344 | CE19: -0.515625 | CF19: -0.529155 | CG19: -0.509245 | CH19: -0.451165 | CI19: -0.35013 | CJ19: -0.2013 | CK19: 0 | CL19: =CL$36*($BX$30-$BX19) -> 0.257015 | CM19: =CM$36*($BX$30-$BX19)-(CM$5-$BX19)*$CA$4 -> 0.066555 | CN19: =CN$36*($BX$30-$BX19)-(CN$5-$BX19)*$CA$4 -> -0.076165 | CO19: =CO$36*($BX$30-$BX19)-(CO$5-$BX19)*$CA$4 -> -0.17593 | CP19: =CP$36*($BX$30-$BX19)-(CP$5-$BX19)*$CA$4 -> -0.23747 | CQ19: =CQ$36*($BX$30-$BX19)-(CQ$5-$BX19)*$CA$4 -> -0.265625 | CR19: -0.265125 | CS19: -0.240755 | CT19: -0.197245 | CU19: -0.13949 | CV19: -0.07211 | CW19: 0
B20: 14 | U20: 14 | V20: 7 | W20: 0 | X20: 0 | Y20: 0 | Z20: 0 | AA20: 0 | AB20: 0 | AC20: 0 | AD20: 0 | AE20: 0 | AF20: 0 | AG20: 0 | AH20: 0 | AI20: 0 | AJ20: 0 | AK20: 0 | AL20: -0.5 | AM20: -1 | AR20: 14 | AS20: 7 | AT20: 0 | AU20: 0 | AV20: 0 | AW20: 0 | AX20: 0 | AY20: 0 | AZ20: 0 | BA20: 0 | BB20: 0 | BC20: 0 | BD20: 0 | BE20: 0 | BF20: 0 | BG20: 0 | BH20: 0 | BI20: -0.5 | BJ20: -1 | BK20: =($BJ20*(4-(BK$5-8))/4) -> -0.875 | BL20: -0.75 | BM20: -0.625 | BN20: -0.5 | BO20: -0.375 | BP20: -0.25 | BQ20: -0.125 | BR20: 0 | BW20: 14 | BX20: 7 | BY20: 0 | BZ20: -0.10345 | CA20: -0.20255 | CB20: -0.29295 | CC20: -0.37035 | CD20: -0.4304 | CE20: -0.46875 | CF20: -0.48105 | CG20: -0.46295 | CH20: -0.41015 | CI20: -0.3183 | CJ20: -0.183 | CK20: 0 | CL20: 0.23365 | CM20: 0.51505 | CN20: =CN$36*($BX$30-$BX20)-(CN$5-$BX20)*$CA$4 -> 0.33985 | CO20: =CO$36*($BX$30-$BX20)-(CO$5-$BX20)*$CA$4 -> 0.2037 | CP20: =CP$36*($BX$30-$BX20)-(CP$5-$BX20)*$CA$4 -> 0.1023 | CQ20: 0.03125 | CR20: -0.01375 | CS20: -0.03705 | CT20: -0.04295 | CU20: -0.0359 | CV20: -0.0201 | CW20: 0
B21: 15 | U21: 15 | V21: 7.5 | W21: 0 | X21: 0 | Y21: 0 | Z21: 0 | AA21: 0 | AB21: 0 | AC21: 0 | AD21: 0 | AE21: 0 | AF21: 0 | AG21: 0 | AH21: 0 | AI21: 0 | AJ21: 0 | AK21: 0 | AL21: 0 | AM21: -0.5 | AR21: 15 | AS21: 7.5 | AT21: 0 | AU21: 0 | AV21: 0 | AW21: 0 | AX21: 0 | AY21: 0 | AZ21: 0 | BA21: 0 | BB21: 0 | BC21: 0 | BD21: 0 | BE21: 0 | BF21: 0 | BG21: 0 | BH21: 0 | BI21: 0 | BJ21: -0.5 | BK21: =($BJ21*(4-(BK$5-8))/4) -> -0.4375 | BL21: -0.375 | BM21: -0.3125 | BN21: -0.25 | BO21: -0.1875 | BP21: -0.125 | BQ21: -0.0625 | BR21: 0 | BW21: 15 | BX21: 7.5 | BY21: 0 | BZ21: -0.093105 | CA21: -0.182295 | CB21: -0.263655 | CC21: -0.333315 | CD21: -0.38736 | CE21: -0.421875 | CF21: -0.432945 | CG21: -0.416655 | CH21: -0.369135 | CI21: -0.28647 | CJ21: -0.1647 | CK21: 0 | CL21: 0.210285 | CM21: 0.463545 | CN21: 0.755865 | CO21: =CO$36*($BX$30-$BX21)-(CO$5-$BX21)*$CA$4 -> 0.58333 | CP21: =CP$36*($BX$30-$BX21)-(CP$5-$BX21)*$CA$4 -> 0.44207 | CQ21: 0.328125 | CR21: 0.237625 | CS21: 0.166655 | CT21: 0.111345 | CU21: 0.06769 | CV21: 0.03191 | CW21: 0
B22: 16 | U22: 16 | V22: 8 | W22: 0 | X22: 0 | Y22: 0 | Z22: 0 | AA22: 0 | AB22: 0 | AC22: 0 | AD22: 0 | AE22: 0 | AF22: 0 | AG22: 0 | AH22: 0 | AI22: 0 | AJ22: 0 | AK22: 0 | AL22: 0 | AM22: 0 | AR22: 16 | AS22: 8 | AT22: 0 | AU22: 0 | AV22: 0 | AW22: 0 | AX22: 0 | AY22: 0 | AZ22: 0 | BA22: 0 | BB22: 0 | BC22: 0 | BD22: 0 | BE22: 0 | BF22: 0 | BG22: 0 | BH22: 0 | BI22: 0 | BJ22: 0 | BK22: =($BJ22*(4-(BK$5-8))/4) -> 0 | BL22: 0 | BM22: 0 | BN22: 0 | BO22: 0 | BP22: 0 | BQ22: 0 | BR22: 0 | BW22: 16 | BX22: 8 | BY22: 0 | BZ22: -0.08276 | CA22: -0.16204 | CB22: -0.23436 | CC22: -0.29628 | CD22: -0.34432 | CE22: -0.375 | CF22: -0.38484 | CG22: -0.37036 | CH22: -0.32812 | CI22: -0.25464 | CJ22: -0.1464 | CK22: 0 | CL22: 0.18692 | CM22: 0.41204 | CN22: 0.67188 | CO22: 0.96296 | CP22: =CP$36*($BX$30-$BX22)-(CP$5-$BX22)*$CA$4 -> 0.78184 | CQ22: 0.625 | CR22: 0.489 | CS22: 0.37036 | CT22: 0.26564 | CU22: 0.17128 | CV22: 0.08392 | CW22: 0
B23: 17 | U23: 17 | AR23: 17 | AS23: 8.5 | AT23: 0 | AU23: 0 | AV23: 0 | AW23: 0 | AX23: 0 | AY23: 0 | AZ23: 0 | BA23: 0 | BB23: 0 | BC23: 0 | BD23: 0 | BE23: 0 | BF23: 0 | BG23: 0 | BH23: 0 | BI23: 0 | BJ23: 0 | BK23: =AV4*7/16 -> 0.4375 | BL23: =AV4*0.75/2 -> 0.375 | BM23: =AV4*5/8*0.5 -> 0.3125 | BN23: =AV4*0.25 -> 0.25 | BO23: =AV4*0.1875 -> 0.1875 | BP23: =AV4*0.125 -> 0.125 | BQ23: =AV4*0.0625 -> 0.0625 | BR23: 0 | BW23: 17 | BX23: 8.5 | BY23: 0 | BZ23: -0.072415 | CA23: -0.141785 | CB23: -0.205065 | CC23: -0.259245 | CD23: -0.30128 | CE23: -0.328125 | CF23: -0.336735 | CG23: -0.324065 | CH23: -0.287105 | CI23: -0.22281 | CJ23: -0.1281 | CK23: 0 | CL23: 0.163555 | CM23: 0.360535 | CN23: 0.587895 | CO23: 0.84259 | CP23: 1.12161 | CQ23: 0.921875 | CR23: 0.740375 | CS23: 0.574065 | CT23: 0.419935 | CU23: 0.27487 | CV23: 0.13593 | CW23: 0
B24: 18 | U24: 18 | AR24: 18 | AS24: 9 | AT24: 0 | AU24: 0 | AV24: 0 | AW24: 0 | AX24: 0 | AY24: 0 | AZ24: 0 | BA24: 0 | BB24: 0 | BC24: 0 | BD24: 0 | BE24: 0 | BF24: 0 | BG24: 0 | BH24: 0 | BI24: 0 | BJ24: 0 | BK24: =AV4*6/16 -> 0.375 | BL24: =AV4*0.75 -> 0.75 | BM24: =AV4*5/8 -> 0.625 | BN24: =AV4*0.5 -> 0.5 | BO24: =AV4*0.375 -> 0.375 | BP24: =AV4*0.25 -> 0.25 | BQ24: =AV4*0.125 -> 0.125 | BR24: 0 | BW24: 18 | BX24: 9 | BY24: 0 | BZ24: -0.06207 | CA24: -0.12153 | CB24: -0.17577 | CC24: -0.22221 | CD24: -0.25824 | CE24: -0.28125 | CF24: -0.28863 | CG24: -0.27777 | CH24: -0.24609 | CI24: -0.19098 | CJ24: -0.1098 | CK24: 0 | CL24: 0.14019 | CM24: 0.30903 | CN24: 0.50391 | CO24: 0.72222 | CP24: 0.96138 | CQ24: 1.21875 | CR24: 0.99175 | CS24: 0.77777 | CT24: 0.57423 | CU24: 0.37846 | CV24: 0.18794 | CW24: 0
B25: 19 | U25: 19 | AR25: 19 | AS25: 9.5 | AT25: 0 | AU25: 0 | AV25: 0 | AW25: 0 | AX25: 0 | AY25: 0 | AZ25: 0 | BA25: 0 | BB25: 0 | BC25: 0 | BD25: 0 | BE25: 0 | BF25: 0 | BG25: 0 | BH25: 0 | BI25: 0 | BJ25: 0 | BK25: =AV4*5/16 -> 0.3125 | BL25: =AV4*0.625 -> 0.625 | BM25: =AV4*5/8*1.5 -> 0.9375 | BN25: =AV4*0.75 -> 0.75 | BO25: =AV4*0.5625 -> 0.5625 | BP25: =AV4*0.375 -> 0.375 | BQ25: =AV4*0.1875 -> 0.1875 | BR25: 0 | BW25: 19 | BX25: 9.5 | BY25: 0 | BZ25: -0.051725 | CA25: -0.101275 | CB25: -0.146475 | CC25: -0.185175 | CD25: -0.2152 | CE25: -0.234375 | CF25: -0.240525 | CG25: -0.231475 | CH25: -0.205075 | CI25: -0.15915 | CJ25: -0.0915 | CK25: 0 | CL25: 0.116825 | CM25: 0.257525 | CN25: 0.419925 | CO25: 0.60185 | CP25: 0.80115 | CQ25: 1.015625 | CR25: 1.243125 | CS25: 0.981475 | CT25: 0.728525 | CU25: 0.48205 | CV25: 0.23995 | CW25: 0
B26: 20 | U26: 20 | AR26: 20 | AS26: 10 | AT26: 0 | AU26: 0 | AV26: 0 | AW26: 0 | AX26: 0 | AY26: 0 | AZ26: 0 | BA26: 0 | BB26: 0 | BC26: 0 | BD26: 0 | BE26: 0 | BF26: 0 | BG26: 0 | BH26: 0 | BI26: 0 | BJ26: 0 | BK26: =AV4*4/16 -> 0.25 | BL26: =AV4*0.5 -> 0.5 | BM26: =BM25*4/5 -> 0.75 | BN26: =AV4 -> 1 | BO26: =AV4*0.75 -> 0.75 | BP26: =AV4*0.5 -> 0.5 | BQ26: =AV4*0.25 -> 0.25 | BR26: 0 | BW26: 20 | BX26: 10 | BY26: 0 | BZ26: -0.04138 | CA26: -0.08102 | CB26: -0.11718 | CC26: -0.14814 | CD26: -0.17216 | CE26: -0.1875 | CF26: -0.19242 | CG26: -0.18518 | CH26: -0.16406 | CI26: -0.12732 | CJ26: -0.0732 | CK26: 0 | CL26: 0.09346 | CM26: 0.20602 | CN26: 0.33594 | CO26: 0.48148 | CP26: 0.64092 | CQ26: 0.8125 | CR26: 0.9945 | CS26: 1.18518 | CT26: 0.88282 | CU26: 0.58564 | CV26: 0.29196 | CW26: 0
B27: 21 | U27: 21 | AR27: 21 | AS27: 10.5 | AT27: 0 | AU27: 0 | AV27: 0 | AW27: 0 | AX27: 0 | AY27: 0 | AZ27: 0 | BA27: 0 | BB27: 0 | BC27: 0 | BD27: 0 | BE27: 0 | BF27: 0 | BG27: 0 | BH27: 0 | BI27: 0 | BJ27: 0 | BK27: =AV4*3/16 -> 0.1875 | BL27: =AV4*0.375 -> 0.375 | BM27: =AV4*0.75*0.75 -> 0.5625 | BN27: =BN25 -> 0.75 | BO27: =AV4*0.9375 -> 0.9375 | BP27: =AV4*0.625 -> 0.625 | BQ27: =AV4*0.3125 -> 0.3125 | BR27: 0 | BW27: 21 | BX27: 10.5 | BY27: 0 | BZ27: -0.031035 | CA27: -0.060765 | CB27: -0.087885 | CC27: -0.111105 | CD27: -0.12912 | CE27: -0.140625 | CF27: -0.144315 | CG27: -0.138885 | CH27: -0.123045 | CI27: -0.09549 | CJ27: -0.0549 | CK27: 0 | CL27: 0.070095 | CM27: 0.154515 | CN27: 0.251955 | CO27: 0.36111 | CP27: 0.48069 | CQ27: 0.609375 | CR27: 0.745875 | CS27: 0.888885 | CT27: 1.037115 | CU27: 0.68923 | CV27: 0.34397 | CW27: 0
B28: 22 | U28: 22 | AR28: 22 | AS28: 11 | AT28: 0 | AU28: 0 | AV28: 0 | AW28: 0 | AX28: 0 | AY28: 0 | AZ28: 0 | BA28: 0 | BB28: 0 | BC28: 0 | BD28: 0 | BE28: 0 | BF28: 0 | BG28: 0 | BH28: 0 | BI28: 0 | BJ28: 0 | BK28: =AV4/8 -> 0.125 | BL28: =AV4*0.25 -> 0.25 | BM28: =AV4*0.75/2 -> 0.375 | BN28: =BN24 -> 0.5 | BO28: =BO27*2/3 -> 0.625 | BP28: =AV4*0.75 -> 0.75 | BQ28: =AV4*0.375 -> 0.375 | BR28: 0 | BW28: 22 | BX28: 11 | BY28: 0 | BZ28: -0.02069 | CA28: -0.04051 | CB28: -0.05859 | CC28: -0.07407 | CD28: -0.08608 | CE28: -0.09375 | CF28: -0.09621 | CG28: -0.09259 | CH28: -0.08203 | CI28: -0.06366 | CJ28: -0.0366 | CK28: 0 | CL28: 0.04673 | CM28: 0.10301 | CN28: 0.16797 | CO28: 0.24074 | CP28: 0.32046 | CQ28: 0.40625 | CR28: 0.49725 | CS28: 0.59259 | CT28: 0.69141 | CU28: 0.79282 | CV28: 0.39598 | CW28: 0
B29: 23 | U29: 23 | AR29: 23 | AS29: 11.5 | AT29: 0 | AU29: 0 | AV29: 0 | AW29: 0 | AX29: 0 | AY29: 0 | AZ29: 0 | BA29: 0 | BB29: 0 | BC29: 0 | BD29: 0 | BE29: 0 | BF29: 0 | BG29: 0 | BH29: 0 | BI29: 0 | BJ29: 0 | BK29: =AV4/16 -> 0.0625 | BL29: =AV4*0.125 -> 0.125 | BM29: =AV4*0.75/4 -> 0.1875 | BN29: =BN23 -> 0.25 | BO29: =BO28/2 -> 0.3125 | BP29: =BP28/2 -> 0.375 | BQ29: =AV4*0.4375 -> 0.4375 | BR29: 0 | BW29: 23 | BX29: 11.5 | BY29: 0 | BZ29: -0.010345 | CA29: -0.020255 | CB29: -0.029295 | CC29: -0.037035 | CD29: -0.04304 | CE29: -0.046875 | CF29: -0.048105 | CG29: -0.046295 | CH29: -0.041015 | CI29: -0.03183 | CJ29: -0.0183 | CK29: 0 | CL29: 0.023365 | CM29: 0.051505 | CN29: 0.083985 | CO29: 0.12037 | CP29: 0.16023 | CQ29: 0.203125 | CR29: 0.248625 | CS29: 0.296295 | CT29: 0.345705 | CU29: 0.39641 | CV29: 0.44799 | CW29: 0
B30: 24 | U30: 24 | AR30: 24 | AS30: 12 | AT30: 0 | AU30: 0 | AV30: 0 | AW30: 0 | AX30: 0 | AY30: 0 | AZ30: 0 | BA30: 0 | BB30: 0 | BC30: 0 | BD30: 0 | BE30: 0 | BF30: 0 | BG30: 0 | BH30: 0 | BI30: 0 | BJ30: 0 | BK30: 0 | BL30: 0 | BM30: 0 | BN30: 0 | BO30: 0 | BP30: 0 | BQ30: 0 | BR30: 0 | BW30: 24 | BX30: 12 | BY30: 0 | BZ30: 0 | CA30: 0 | CB30: 0 | CC30: 0 | CD30: 0 | CE30: 0 | CF30: 0 | CG30: 0 | CH30: 0 | CI30: 0 | CJ30: 0 | CK30: 0 | CL30: =CL$36*($BX$30-$BX30) -> 0 | CM30: 0 | CN30: 0 | CO30: 0 | CP30: 0 | CQ30: 0 | CR30: 0 | CS30: 0 | CT30: 0 | CU30: 0 | CV30: 0 | CW30: 0
B32: Auflagerreaktionen | E32: F = | F32: ='GD1'!$F$12 -> 1 | U32: Auflagerreaktionen | X32: F = | Y32: ='GD1'!$F$12 -> 1 | AR32: Auflagerreaktionen | AU32: F = | AV32: ='GD1'!$F$12 -> 1 | BW32: Auflagerreaktionen | BZ32: F = | CA32: ='GD1'!$F$12 -> 1
B33: Schn. | C33: a | D33: 0 | E33: 0.5 | F33: 1 | G33: 1.5 | H33: 2 | I33: 2.5 | J33: 3 | K33: 3.5 | L33: 4 | M33: 4.5 | N33: 5 | O33: 5.5 | P33: 6 | U33: Schn. | V33: a | W33: 0 | X33: 0.5 | Y33: 1 | Z33: 1.5 | AA33: 2 | AB33: 2.5 | AC33: 3 | AD33: 3.5 | AE33: 4 | AF33: 4.5 | AG33: 5 | AH33: 5.5 | AI33: 6 | AJ33: 6.5 | AK33: 7 | AL33: 7.5 | AM33: 8 | AR33: Schn. | AS33: a | AT33: 0 | AU33: 0.5 | AV33: 1 | AW33: 1.5 | AX33: 2 | AY33: 2.5 | AZ33: 3 | BA33: 3.5 | BB33: 4 | BC33: 4.5 | BD33: 5 | BE33: 5.5 | BF33: 6 | BG33: 6.5 | BH33: 7 | BI33: 7.5 | BJ33: 8 | BK33: 8.5 | BL33: 9 | BM33: 9.5 | BN33: 10 | BO33: 10.5 | BP33: 11 | BQ33: 11.5 | BR33: 12 | BW33: Schn. | BX33: a | BY33: 0 | BZ33: 0.5 | CA33: 1 | CB33: 1.5 | CC33: 2 | CD33: 2.5 | CE33: 3 | CF33: 3.5 | CG33: 4 | CH33: 4.5 | CI33: 5 | CJ33: 5.5 | CK33: 6 | CL33: 6.5 | CM33: 7 | CN33: 7.5 | CO33: 8 | CP33: 8.5 | CQ33: 9 | CR33: 9.5 | CS33: 10 | CT33: 10.5 | CU33: 11 | CV33: 11.5 | CW33: 12
B34: 0 | C34: 0 | D34: =$F$32*(6-D33)/6 -> 1 | E34: =$F$32*(6-E33)/6 -> 0.9166666667 | F34: 0.8333333333 | G34: 0.75 | H34: 0.6666666667 | I34: 0.5833333333 | J34: 0.5 | K34: =$F$32*(6-K33)/6 -> 0.4166666667 | L34: 0.3333333333 | M34: 0.25 | N34: 0.1666666667 | O34: 0.08333333333 | P34: 0 | U34: 0 | V34: 0 | W34: =$Y$32*(6-W33)/6 -> 1 | X34: =$Y$32*(6-X33)/6 -> 0.9166666667 | Y34: 0.8333333333 | Z34: 0.75 | AA34: 0.6666666667 | AB34: 0.5833333333 | AC34: 0.5 | AD34: =$Y$32*(6-AD33)/6 -> 0.4166666667 | AE34: 0.3333333333 | AF34: 0.25 | AG34: 0.1666666667 | AH34: 0.08333333333 | AI34: 0 | AJ34: -0.08333333333 | AK34: -0.1666666667 | AL34: -0.25 | AM34: -0.3333333333 | AR34: 0 | AS34: 0 | AT34: =$AV$32*(6-AT33)/6 -> 1 | AU34: =$AV$32*(6-AU33)/6 -> 0.9166666667 | AV34: 0.8333333333 | AW34: 0.75 | AX34: 0.6666666667 | AY34: 0.5833333333 | AZ34: 0.5 | BA34: 0.4166666667 | BB34: =$AV$32*(6-BB33)/6 -> 0.3333333333 | BC34: 0.25 | BD34: 0.1666666667 | BE34: 0.08333333333 | BF34: 0 | BG34: -0.08333333333 | BH34: -0.1666666667 | BI34: -0.25 | BJ34: -0.3333333333 | BK34: =$BJ34*(4-(BK$5-8))/4 -> -0.2916666667 | BL34: -0.25 | BM34: -0.2083333333 | BN34: -0.1666666667 | BO34: -0.125 | BP34: -0.08333333333 | BQ34: -0.04166666667 | BR34: 0 | BW34: 0 | BX34: 0 | BY34: =CA32 -> 1 | BZ34: =CA32*0.89598 -> 0.89598 | CA34: =CA32*0.79282 -> 0.79282 | CB34: =CA32*0.69141 -> 0.69141 | CC34: =CA32*0.59259 -> 0.59259 | CD34: =CA32*0.49725 -> 0.49725 | CE34: =CA32*0.40625 -> 0.40625 | CF34: =CA32*0.32046 -> 0.32046 | CG34: =CA32*0.24074 -> 0.24074 | CH34: =CA32*0.16797 -> 0.16797 | CI34: =CA32*0.10301 -> 0.10301 | CJ34: =CA32*0.04673 -> 0.04673 | CK34: 0 | CL34: =CJ36 -> -0.0366 | CM34: =CI36 -> -0.06366 | CN34: =CH36 -> -0.08203 | CO34: =CG36 -> -0.09259 | CP34: =CF36 -> -0.09621 | CQ34: =CE36 -> -0.09375 | CR34: =CD36 -> -0.08608 | CS34: =CC36 -> -0.07407 | CT34: =CB36 -> -0.05859 | CU34: =CA36 -> -0.04051 | CV34: =BZ36 -> -0.02069 | CW34: 0
B35: 12 | C35: 6 | D35: =$F$32*(1-(6-D33)/6) -> 0 | E35: =$F$32*(1-(6-E33)/6) -> 0.08333333333 | F35: 0.1666666667 | G35: 0.25 | H35: 0.3333333333 | I35: 0.4166666667 | J35: 0.5 | K35: 0.5833333333 | L35: 0.6666666667 | M35: 0.75 | N35: 0.8333333333 | O35: 0.9166666667 | P35: 1 | U35: 12 | V35: 6 | W35: =$Y$32*(1-(6-W33)/6) -> 0 | X35: =$Y$32*(1-(6-X33)/6) -> 0.08333333333 | Y35: 0.1666666667 | Z35: 0.25 | AA35: 0.3333333333 | AB35: 0.4166666667 | AC35: 0.5 | AD35: 0.5833333333 | AE35: 0.6666666667 | AF35: 0.75 | AG35: 0.8333333333 | AH35: 0.9166666667 | AI35: 1 | AJ35: 1.083333333 | AK35: 1.166666667 | AL35: 1.25 | AM35: 1.333333333 | AR35: 12 | AS35: 6 | AT35: =$AV$32*(1-(6-AT33)/6) -> 0 | AU35: =$AV$32*(1-(6-AU33)/6) -> 0.08333333333 | AV35: 0.1666666667 | AW35: 0.25 | AX35: 0.3333333333 | AY35: 0.4166666667 | AZ35: 0.5 | BA35: 0.5833333333 | BB35: 0.6666666667 | BC35: 0.75 | BD35: 0.8333333333 | BE35: 0.9166666667 | BF35: 1 | BG35: =$AV$32*(1-(6-BG33)/6) -> 1.083333333 | BH35: =$AV$32*(1-(6-BH33)/6) -> 1.166666667 | BI35: =$AV$32*(1-(6-BI33)/6) -> 1.25 | BJ35: =$AV$32*(1-(6-BJ33)/6) -> 1.333333333 | BK35: 1.166666667 | BL35: 1 | BM35: 0.8333333333 | BN35: 0.6666666667 | BO35: 0.5 | BP35: 0.3333333333 | BQ35: 0.1666666667 | BR35: 0 | BW35: 12 | BX35: 6 | BY35: 0 | BZ35: =CA32*0.12471 -> 0.12471 | CA35: =CA32*0.24769 -> 0.24769 | CB35: =CA32*0.36719 -> 0.36719 | CC35: =CA32*0.48148 -> 0.48148 | CD35: =CA32*0.58883 -> 0.58883 | CE35: =CA32*0.6875 -> 0.6875 | CF35: =CA32*0.77575 -> 0.77575 | CG35: =CA32*0.85185 -> 0.85185 | CH35: =CA32*0.91406 -> 0.91406 | CI35: =CA32*0.96065 -> 0.96065 | CJ35: =CA32*0.98987 -> 0.98987 | CK35: =CA32 -> 1 | CL35: =CJ35 -> 0.98987 | CM35: =CI35 -> 0.96065 | CN35: =CH35 -> 0.91406 | CO35: =CG35 -> 0.85185 | CP35: =CF35 -> 0.77575 | CQ35: =CE35 -> 0.6875 | CR35: =CD35 -> 0.58883 | CS35: =CC35 -> 0.48148 | CT35: =CB35 -> 0.36719 | CU35: =CA35 -> 0.24769 | CV35: =BZ35 -> 0.12471 | CW35: 0
B36: 24 | U36: 24 | AR36: 24 | AS36: 120 | AT36: 0 | AU36: 0 | AV36: 0 | AW36: 0 | AX36: 0 | AY36: 0 | AZ36: 0 | BA36: 0 | BB36: 0 | BC36: 0 | BD36: 0 | BE36: 0 | BF36: 0 | BG36: 0 | BH36: 0 | BI36: 0 | BJ36: 0 | BK36: =$AV$32-BK35-BK34 -> 0.125 | BL36: =$AV$32-BL35-BL34 -> 0.25 | BM36: 0.375 | BN36: 0.5 | BO36: 0.625 | BP36: 0.75 | BQ36: 0.875 | BR36: 1 | BW36: 24 | BX36: 12 | BY36: 0 | BZ36: =CA32*-0.02069 -> -0.02069 | CA36: =CA32*-0.04051 -> -0.04051 | CB36: =CA32*-0.05859 -> -0.05859 | CC36: =CA32*-0.07407 -> -0.07407 | CD36: =CA32*-0.08608 -> -0.08608 | CE36: =CA32*-0.09375 -> -0.09375 | CF36: =CA32*-0.09621 -> -0.09621 | CG36: =CA32*-0.09259 -> -0.09259 | CH36: =CA32*-0.08203 -> -0.08203 | CI36: =CA32*-0.06366 -> -0.06366 | CJ36: =CA32*-0.0366 -> -0.0366 | CK36: 0 | CL36: =CJ34 -> 0.04673 | CM36: =CI34 -> 0.10301 | CN36: =CH34 -> 0.16797 | CO36: =CG34 -> 0.24074 | CP36: =CF34 -> 0.32046 | CQ36: =CE34 -> 0.40625 | CR36: =CD34 -> 0.49725 | CS36: =CC34 -> 0.59259 | CT36: =CB34 -> 0.69141 | CU36: =CA34 -> 0.79282 | CV36: =BZ34 -> 0.89598 | CW36: =CA32 -> 1
B38: Querkräfte | E38: F = | F38: ='GD1'!$F$12 -> 1 | Q38: =1/10000 -> 0.0001 | U38: Querkräfte | X38: F = | Y38: ='GD1'!$F$12 -> 1 | AN38: =1/10000 -> 0.0001 | AR38: Querkräfte | AU38: F = | AV38: ='GD1'!$F$12 -> 1 | BW38: Querkräfte | BZ38: F = | CA38: ='GD1'!$F$12 -> 1
B39: Schn. | C39: a | D39: 0 | E39: 0.5 | F39: 1 | G39: 1.5 | H39: 2 | I39: 2.5 | J39: 3 | K39: 3.5 | L39: 4 | M39: 4.5 | N39: 5 | O39: 5.5 | P39: 6 | Q39: a+da | U39: Schn. | V39: a | W39: 0 | X39: 0.5 | Y39: 1 | Z39: 1.5 | AA39: 2 | AB39: 2.5 | AC39: 3 | AD39: 3.5 | AE39: 4 | AF39: 4.5 | AG39: 5 | AH39: 5.5 | AI39: 6 | AJ39: 6.5 | AK39: 7 | AL39: 7.5 | AM39: 8 | AN39: a+da | AR39: Schn. | AS39: a | AT39: 0 | AU39: 0.5 | AV39: 1 | AW39: 1.5 | AX39: 2 | AY39: 2.5 | AZ39: 3 | BA39: 3.5 | BB39: 4 | BC39: 4.5 | BD39: 5 | BE39: 5.5 | BF39: 6 | BG39: 6.5 | BH39: 7 | BI39: 7.5 | BJ39: 8 | BK39: 8.5 | BL39: 9 | BM39: 9.5 | BN39: 10 | BO39: 10.5 | BP39: 11 | BQ39: 11.5 | BR39: 12 | BW39: Schn. | BX39: a | BY39: 0 | BZ39: 0.5 | CA39: 1 | CB39: 1.5 | CC39: 2 | CD39: 2.5 | CE39: 3 | CF39: 3.5 | CG39: 4 | CH39: 4.5 | CI39: 5 | CJ39: 5.5 | CK39: 6 | CL39: 6.5 | CM39: 7 | CN39: 7.5 | CO39: 8 | CP39: 8.5 | CQ39: 9 | CR39: 9.5 | CS39: 10 | CT39: 10.5 | CU39: 11 | CV39: 11.5 | CW39: 12
B40: 0-r | C40: 0 | D40: =IF(D$39<$Q40,-D$35,D$34) -> 0 | E40: 0.9166666667 | F40: 0.8333333333 | G40: 0.75 | H40: 0.6666666667 | I40: 0.5833333333 | J40: 0.5 | K40: 0.4166666667 | L40: 0.3333333333 | M40: 0.25 | N40: 0.1666666667 | O40: 0.08333333333 | P40: 0 | Q40: =Q38 -> 0.0001 | U40: 0-r | V40: 0 | W40: =IF(W$39<$AN40,-W$35,W$34) -> 0 | X40: 0.9166666667 | Y40: 0.8333333333 | Z40: 0.75 | AA40: 0.6666666667 | AB40: 0.5833333333 | AC40: 0.5 | AD40: 0.4166666667 | AE40: 0.3333333333 | AF40: 0.25 | AG40: 0.1666666667 | AH40: 0.08333333333 | AI40: 0 | AJ40: =AJ$34 -> -0.08333333333 | AK40: -0.1666666667 | AL40: -0.25 | AM40: -0.3333333333 | AN40: =AN38 -> 0.0001 | AR40: 0-r | AS40: 0 | AT40: =IF(AT$39<$AN40,-AT$35,AT$34) -> 0 | AU40: 0.9166666667 | AV40: 0.8333333333 | AW40: 0.75 | AX40: 0.6666666667 | AY40: 0.5833333333 | AZ40: 0.5 | BA40: 0.4166666667 | BB40: 0.3333333333 | BC40: 0.25 | BD40: 0.1666666667 | BE40: 0.08333333333 | BF40: 0 | BG40: =BG$34 -> -0.08333333333 | BH40: -0.1666666667 | BI40: -0.25 | BJ40: -0.3333333333 | BK40: =BK$34 -> -0.2916666667 | BL40: =BL$34 -> -0.25 | BM40: -0.2083333333 | BN40: -0.1666666667 | BO40: -0.125 | BP40: -0.08333333333 | BQ40: -0.04166666667 | BR40: 0 | BW40: 0-r | BX40: 0 | BY40: 0 | BZ40: =BZ$34 -> 0.89598 | CA40: =CA$34 -> 0.79282 | CB40: =CB$34 -> 0.69141 | CC40: 0.59259 | CD40: 0.49725 | CE40: 0.40625 | CF40: 0.32046 | CG40: 0.24074 | CH40: 0.16797 | CI40: 0.10301 | CJ40: 0.04673 | CK40: 0 | CL40: =CL$34 -> -0.0366 | CM40: -0.06366 | CN40: -0.08203 | CO40: -0.09259 | CP40: -0.09621 | CQ40: -0.09375 | CR40: -0.08608 | CS40: -0.07407 | CT40: -0.05859 | CU40: -0.04051 | CV40: -0.02069 | CW40: 0
B41: 1-l | C41: 0.5 | D41: 0 | E41: 0.9166666667 | F41: 0.8333333333 | G41: 0.75 | H41: 0.6666666667 | I41: 0.5833333333 | J41: 0.5 | K41: 0.4166666667 | L41: 0.3333333333 | M41: 0.25 | N41: 0.1666666667 | O41: 0.08333333333 | P41: 0 | Q41: =C41-$Q$38 -> 0.4999 | U41: 1-l | V41: 0.5 | W41: 0 | X41: 0.9166666667 | Y41: 0.8333333333 | Z41: 0.75 | AA41: 0.6666666667 | AB41: 0.5833333333 | AC41: 0.5 | AD41: 0.4166666667 | AE41: 0.3333333333 | AF41: 0.25 | AG41: 0.1666666667 | AH41: 0.08333333333 | AI41: 0 | AJ41: -0.08333333333 | AK41: -0.1666666667 | AL41: -0.25 | AM41: -0.3333333333 | AN41: =V41-$Q$38 -> 0.4999 | AR41: 1-l | AS41: 0.5 | AT41: 0 | AU41: 0.9166666667 | AV41: 0.8333333333 | AW41: 0.75 | AX41: 0.6666666667 | AY41: 0.5833333333 | AZ41: 0.5 | BA41: 0.4166666667 | BB41: 0.3333333333 | BC41: 0.25 | BD41: 0.1666666667 | BE41: 0.08333333333 | BF41: 0 | BG41: -0.08333333333 | BH41: -0.1666666667 | BI41: -0.25 | BJ41: -0.3333333333 | BK41: -0.2916666667 | BL41: -0.25 | BM41: -0.2083333333 | BN41: -0.1666666667 | BO41: -0.125 | BP41: -0.08333333333 | BQ41: -0.04166666667 | BR41: 0 | BW41: 1-l | BX41: 0.5 | BY41: 0 | BZ41: =BZ$34 -> 0.89598 | CA41: =CA$34 -> 0.79282 | CB41: 0.69141 | CC41: 0.59259 | CD41: 0.49725 | CE41: 0.40625 | CF41: 0.32046 | CG41: 0.24074 | CH41: 0.16797 | CI41: 0.10301 | CJ41: 0.04673 | CK41: 0 | CL41: -0.0366 | CM41: -0.06366 | CN41: -0.08203 | CO41: -0.09259 | CP41: -0.09621 | CQ41: -0.09375 | CR41: -0.08608 | CS41: -0.07407 | CT41: -0.05859 | CU41: -0.04051 | CV41: -0.02069 | CW41: 0
B42: 1-r | C42: 0.5 | D42: 0 | E42: -0.08333333333 | F42: 0.8333333333 | G42: 0.75 | H42: 0.6666666667 | I42: 0.5833333333 | J42: 0.5 | K42: 0.4166666667 | L42: 0.3333333333 | M42: 0.25 | N42: 0.1666666667 | O42: 0.08333333333 | P42: 0 | Q42: =C42+$Q$38 -> 0.5001 | U42: 1-r | V42: 0.5 | W42: 0 | X42: -0.08333333333 | Y42: 0.8333333333 | Z42: 0.75 | AA42: 0.6666666667 | AB42: 0.5833333333 | AC42: 0.5 | AD42: 0.4166666667 | AE42: 0.3333333333 | AF42: 0.25 | AG42: 0.1666666667 | AH42: 0.08333333333 | AI42: 0 | AJ42: -0.08333333333 | AK42: -0.1666666667 | AL42: -0.25 | AM42: -0.3333333333 | AN42: =V42+$Q$38 -> 0.5001 | AR42: 1-r | AS42: 0.5 | AT42: 0 | AU42: -0.08333333333 | AV42: 0.8333333333 | AW42: 0.75 | AX42: 0.6666666667 | AY42: 0.5833333333 | AZ42: 0.5 | BA42: 0.4166666667 | BB42: 0.3333333333 | BC42: 0.25 | BD42: 0.1666666667 | BE42: 0.08333333333 | BF42: 0 | BG42: -0.08333333333 | BH42: -0.1666666667 | BI42: -0.25 | BJ42: -0.3333333333 | BK42: -0.2916666667 | BL42: -0.25 | BM42: -0.2083333333 | BN42: -0.1666666667 | BO42: -0.125 | BP42: -0.08333333333 | BQ42: -0.04166666667 | BR42: 0 | BW42: 1-r | BX42: 0.5 | BY42: 0 | BZ42: =BZ$34-$CA$38 -> -0.10402 | CA42: =CA$34 -> 0.79282 | CB42: 0.69141 | CC42: 0.59259 | CD42: 0.49725 | CE42: 0.40625 | CF42: 0.32046 | CG42: 0.24074 | CH42: 0.16797 | CI42: 0.10301 | CJ42: 0.04673 | CK42: 0 | CL42: -0.0366 | CM42: -0.06366 | CN42: -0.08203 | CO42: -0.09259 | CP42: -0.09621 | CQ42: -0.09375 | CR42: -0.08608 | CS42: -0.07407 | CT42: -0.05859 | CU42: -0.04051 | CV42: -0.02069 | CW42: 0
B43: 2-l | C43: 1 | D43: 0 | E43: -0.08333333333 | F43: 0.8333333333 | G43: 0.75 | H43: 0.6666666667 | I43: 0.5833333333 | J43: 0.5 | K43: 0.4166666667 | L43: 0.3333333333 | M43: 0.25 | N43: 0.1666666667 | O43: 0.08333333333 | P43: 0 | Q43: =C43-$Q$38 -> 0.9999 | U43: 2-l | V43: 1 | W43: 0 | X43: -0.08333333333 | Y43: 0.8333333333 | Z43: 0.75 | AA43: 0.6666666667 | AB43: 0.5833333333 | AC43: 0.5 | AD43: 0.4166666667 | AE43: 0.3333333333 | AF43: 0.25 | AG43: 0.1666666667 | AH43: 0.08333333333 | AI43: 0 | AJ43: -0.08333333333 | AK43: -0.1666666667 | AL43: -0.25 | AM43: -0.3333333333 | AN43: =V43-$Q$38 -> 0.9999 | AR43: 2-l | AS43: 1 | AT43: 0 | AU43: -0.08333333333 | AV43: 0.8333333333 | AW43: 0.75 | AX43: 0.6666666667 | AY43: 0.5833333333 | AZ43: 0.5 | BA43: 0.4166666667 | BB43: 0.3333333333 | BC43: 0.25 | BD43: 0.1666666667 | BE43: 0.08333333333 | BF43: 0 | BG43: -0.08333333333 | BH43: -0.1666666667 | BI43: -0.25 | BJ43: -0.3333333333 | BK43: -0.2916666667 | BL43: -0.25 | BM43: -0.2083333333 | BN43: -0.1666666667 | BO43: -0.125 | BP43: -0.08333333333 | BQ43: -0.04166666667 | BR43: 0 | BW43: 2-l | BX43: 1 | BY43: 0 | BZ43: =BZ$34-$CA$38 -> -0.10402 | CA43: =CA$34 -> 0.79282 | CB43: 0.69141 | CC43: 0.59259 | CD43: 0.49725 | CE43: 0.40625 | CF43: 0.32046 | CG43: 0.24074 | CH43: 0.16797 | CI43: 0.10301 | CJ43: 0.04673 | CK43: 0 | CL43: -0.0366 | CM43: -0.06366 | CN43: -0.08203 | CO43: -0.09259 | CP43: -0.09621 | CQ43: -0.09375 | CR43: -0.08608 | CS43: -0.07407 | CT43: -0.05859 | CU43: -0.04051 | CV43: -0.02069 | CW43: 0
B44: 2-r | C44: 1 | D44: 0 | E44: -0.08333333333 | F44: -0.1666666667 | G44: 0.75 | H44: 0.6666666667 | I44: 0.5833333333 | J44: 0.5 | K44: 0.4166666667 | L44: 0.3333333333 | M44: 0.25 | N44: 0.1666666667 | O44: 0.08333333333 | P44: 0 | Q44: =C44+$Q$38 -> 1.0001 | U44: 2-r | V44: 1 | W44: 0 | X44: -0.08333333333 | Y44: -0.1666666667 | Z44: 0.75 | AA44: 0.6666666667 | AB44: 0.5833333333 | AC44: 0.5 | AD44: 0.4166666667 | AE44: 0.3333333333 | AF44: 0.25 | AG44: 0.1666666667 | AH44: 0.08333333333 | AI44: 0 | AJ44: -0.08333333333 | AK44: -0.1666666667 | AL44: -0.25 | AM44: -0.3333333333 | AN44: =V44+$Q$38 -> 1.0001 | AR44: 2-r | AS44: 1 | AT44: 0 | AU44: -0.08333333333 | AV44: -0.1666666667 | AW44: 0.75 | AX44: 0.6666666667 | AY44: 0.5833333333 | AZ44: 0.5 | BA44: 0.4166666667 | BB44: 0.3333333333 | BC44: 0.25 | BD44: 0.1666666667 | BE44: 0.08333333333 | BF44: 0 | BG44: -0.08333333333 | BH44: -0.1666666667 | BI44: -0.25 | BJ44: -0.3333333333 | BK44: -0.2916666667 | BL44: -0.25 | BM44: -0.2083333333 | BN44: -0.1666666667 | BO44: -0.125 | BP44: -0.08333333333 | BQ44: -0.04166666667 | BR44: 0 | BW44: 2-r | BX44: 1 | BY44: 0 | BZ44: -0.10402 | CA44: =CA$34-$CA$38 -> -0.20718 | CB44: 0.69141 | CC44: 0.59259 | CD44: 0.49725 | CE44: 0.40625 | CF44: 0.32046 | CG44: 0.24074 | CH44: 0.16797 | CI44: 0.10301 | CJ44: 0.04673 | CK44: 0 | CL44: -0.0366 | CM44: -0.06366 | CN44: -0.08203 | CO44: -0.09259 | CP44: -0.09621 | CQ44: -0.09375 | CR44: -0.08608 | CS44: -0.07407 | CT44: -0.05859 | CU44: -0.04051 | CV44: -0.02069 | CW44: 0
B45: 3-l | C45: 1.5 | D45: 0 | E45: -0.08333333333 | F45: -0.1666666667 | G45: 0.75 | H45: 0.6666666667 | I45: 0.5833333333 | J45: 0.5 | K45: 0.4166666667 | L45: 0.3333333333 | M45: 0.25 | N45: 0.1666666667 | O45: 0.08333333333 | P45: 0 | Q45: =C45-$Q$38 -> 1.4999 | U45: 3-l | V45: 1.5 | W45: 0 | X45: -0.08333333333 | Y45: -0.1666666667 | Z45: 0.75 | AA45: 0.6666666667 | AB45: 0.5833333333 | AC45: 0.5 | AD45: 0.4166666667 | AE45: 0.3333333333 | AF45: 0.25 | AG45: 0.1666666667 | AH45: 0.08333333333 | AI45: 0 | AJ45: -0.08333333333 | AK45: -0.1666666667 | AL45: -0.25 | AM45: -0.3333333333 | AN45: =V45-$Q$38 -> 1.4999 | AR45: 3-l | AS45: 1.5 | AT45: 0 | AU45: -0.08333333333 | AV45: -0.1666666667 | AW45: 0.75 | AX45: 0.6666666667 | AY45: 0.5833333333 | AZ45: 0.5 | BA45: 0.4166666667 | BB45: 0.3333333333 | BC45: 0.25 | BD45: 0.1666666667 | BE45: 0.08333333333 | BF45: 0 | BG45: -0.08333333333 | BH45: -0.1666666667 | BI45: -0.25 | BJ45: -0.3333333333 | BK45: -0.2916666667 | BL45: -0.25 | BM45: -0.2083333333 | BN45: -0.1666666667 | BO45: -0.125 | BP45: -0.08333333333 | BQ45: -0.04166666667 | BR45: 0 | BW45: 3-l | BX45: 1.5 | BY45: 0 | BZ45: -0.10402 | CA45: -0.20718 | CB45: 0.69141 | CC45: 0.59259 | CD45: 0.49725 | CE45: 0.40625 | CF45: 0.32046 | CG45: 0.24074 | CH45: 0.16797 | CI45: 0.10301 | CJ45: 0.04673 | CK45: 0 | CL45: -0.0366 | CM45: -0.06366 | CN45: -0.08203 | CO45: -0.09259 | CP45: -0.09621 | CQ45: -0.09375 | CR45: -0.08608 | CS45: -0.07407 | CT45: -0.05859 | CU45: -0.04051 | CV45: -0.02069 | CW45: 0
B46: 3-r | C46: 1.5 | D46: 0 | E46: -0.08333333333 | F46: -0.1666666667 | G46: -0.25 | H46: 0.6666666667 | I46: 0.5833333333 | J46: 0.5 | K46: 0.4166666667 | L46: 0.3333333333 | M46: 0.25 | N46: 0.1666666667 | O46: 0.08333333333 | P46: 0 | Q46: =C46+$Q$38 -> 1.5001 | U46: 3-r | V46: 1.5 | W46: 0 | X46: -0.08333333333 | Y46: -0.1666666667 | Z46: -0.25 | AA46: 0.6666666667 | AB46: 0.5833333333 | AC46: 0.5 | AD46: 0.4166666667 | AE46: 0.3333333333 | AF46: 0.25 | AG46: 0.1666666667 | AH46: 0.08333333333 | AI46: 0 | AJ46: -0.08333333333 | AK46: -0.1666666667 | AL46: -0.25 | AM46: -0.3333333333 | AN46: =V46+$Q$38 -> 1.5001 | AR46: 3-r | AS46: 1.5 | AT46: 0 | AU46: -0.08333333333 | AV46: -0.1666666667 | AW46: -0.25 | AX46: 0.6666666667 | AY46: 0.5833333333 | AZ46: 0.5 | BA46: 0.4166666667 | BB46: 0.3333333333 | BC46: 0.25 | BD46: 0.1666666667 | BE46: 0.08333333333 | BF46: 0 | BG46: -0.08333333333 | BH46: -0.1666666667 | BI46: -0.25 | BJ46: -0.3333333333 | BK46: -0.2916666667 | BL46: -0.25 | BM46: -0.2083333333 | BN46: -0.1666666667 | BO46: -0.125 | BP46: -0.08333333333 | BQ46: -0.04166666667 | BR46: 0 | BW46: 3-r | BX46: 1.5 | BY46: 0 | BZ46: -0.10402 | CA46: -0.20718 | CB46: =CB$34-$CA$38 -> -0.30859 | CC46: 0.59259 | CD46: 0.49725 | CE46: 0.40625 | CF46: 0.32046 | CG46: 0.24074 | CH46: 0.16797 | CI46: 0.10301 | CJ46: 0.04673 | CK46: 0 | CL46: -0.0366 | CM46: -0.06366 | CN46: -0.08203 | CO46: -0.09259 | CP46: -0.09621 | CQ46: -0.09375 | CR46: -0.08608 | CS46: -0.07407 | CT46: -0.05859 | CU46: -0.04051 | CV46: -0.02069 | CW46: 0
B47: 4-l | C47: 2 | D47: 0 | E47: -0.08333333333 | F47: -0.1666666667 | G47: -0.25 | H47: 0.6666666667 | I47: 0.5833333333 | J47: 0.5 | K47: 0.4166666667 | L47: 0.3333333333 | M47: 0.25 | N47: 0.1666666667 | O47: 0.08333333333 | P47: 0 | Q47: =C47-$Q$38 -> 1.9999 | U47: 4-l | V47: 2 | W47: 0 | X47: -0.08333333333 | Y47: -0.1666666667 | Z47: -0.25 | AA47: 0.6666666667 | AB47: 0.5833333333 | AC47: 0.5 | AD47: 0.4166666667 | AE47: 0.3333333333 | AF47: 0.25 | AG47: 0.1666666667 | AH47: 0.08333333333 | AI47: 0 | AJ47: -0.08333333333 | AK47: -0.1666666667 | AL47: -0.25 | AM47: -0.3333333333 | AN47: =V47-$Q$38 -> 1.9999 | AR47: 4-l | AS47: 2 | AT47: 0 | AU47: -0.08333333333 | AV47: -0.1666666667 | AW47: -0.25 | AX47: 0.6666666667 | AY47: 0.5833333333 | AZ47: 0.5 | BA47: 0.4166666667 | BB47: 0.3333333333 | BC47: 0.25 | BD47: 0.1666666667 | BE47: 0.08333333333 | BF47: 0 | BG47: -0.08333333333 | BH47: -0.1666666667 | BI47: -0.25 | BJ47: -0.3333333333 | BK47: -0.2916666667 | BL47: -0.25 | BM47: -0.2083333333 | BN47: -0.1666666667 | BO47: -0.125 | BP47: -0.08333333333 | BQ47: -0.04166666667 | BR47: 0 | BW47: 4-l | BX47: 2 | BY47: 0 | BZ47: -0.10402 | CA47: -0.20718 | CB47: -0.30859 | CC47: 0.59259 | CD47: 0.49725 | CE47: 0.40625 | CF47: 0.32046 | CG47: 0.24074 | CH47: 0.16797 | CI47: 0.10301 | CJ47: 0.04673 | CK47: 0 | CL47: -0.0366 | CM47: -0.06366 | CN47: -0.08203 | CO47: -0.09259 | CP47: -0.09621 | CQ47: -0.09375 | CR47: -0.08608 | CS47: -0.07407 | CT47: -0.05859 | CU47: -0.04051 | CV47: -0.02069 | CW47: 0
B48: 4-r | C48: 2 | D48: 0 | E48: -0.08333333333 | F48: -0.1666666667 | G48: -0.25 | H48: -0.3333333333 | I48: 0.5833333333 | J48: 0.5 | K48: 0.4166666667 | L48: 0.3333333333 | M48: 0.25 | N48: 0.1666666667 | O48: 0.08333333333 | P48: 0 | Q48: =C48+$Q$38 -> 2.0001 | U48: 4-r | V48: 2 | W48: 0 | X48: -0.08333333333 | Y48: -0.1666666667 | Z48: -0.25 | AA48: -0.3333333333 | AB48: 0.5833333333 | AC48: 0.5 | AD48: 0.4166666667 | AE48: 0.3333333333 | AF48: 0.25 | AG48: 0.1666666667 | AH48: 0.08333333333 | AI48: 0 | AJ48: -0.08333333333 | AK48: -0.1666666667 | AL48: -0.25 | AM48: -0.3333333333 | AN48: =V48+$Q$38 -> 2.0001 | AR48: 4-r | AS48: 2 | AT48: 0 | AU48: -0.08333333333 | AV48: -0.1666666667 | AW48: -0.25 | AX48: -0.3333333333 | AY48: 0.5833333333 | AZ48: 0.5 | BA48: 0.4166666667 | BB48: 0.3333333333 | BC48: 0.25 | BD48: 0.1666666667 | BE48: 0.08333333333 | BF48: 0 | BG48: -0.08333333333 | BH48: -0.1666666667 | BI48: -0.25 | BJ48: -0.3333333333 | BK48: -0.2916666667 | BL48: -0.25 | BM48: -0.2083333333 | BN48: -0.1666666667 | BO48: -0.125 | BP48: -0.08333333333 | BQ48: -0.04166666667 | BR48: 0 | BW48: 4-r | BX48: 2 | BY48: 0 | BZ48: -0.10402 | CA48: -0.20718 | CB48: -0.30859 | CC48: =CC$34-$CA$38 -> -0.40741 | CD48: 0.49725 | CE48: 0.40625 | CF48: 0.32046 | CG48: 0.24074 | CH48: 0.16797 | CI48: 0.10301 | CJ48: 0.04673 | CK48: 0 | CL48: -0.0366 | CM48: -0.06366 | CN48: -0.08203 | CO48: -0.09259 | CP48: -0.09621 | CQ48: -0.09375 | CR48: -0.08608 | CS48: -0.07407 | CT48: -0.05859 | CU48: -0.04051 | CV48: -0.02069 | CW48: 0
B49: 5-l | C49: 2.5 | D49: 0 | E49: -0.08333333333 | F49: -0.1666666667 | G49: -0.25 | H49: -0.3333333333 | I49: 0.5833333333 | J49: 0.5 | K49: 0.4166666667 | L49: 0.3333333333 | M49: 0.25 | N49: 0.1666666667 | O49: 0.08333333333 | P49: 0 | Q49: =C49-$Q$38 -> 2.4999 | U49: 5-l | V49: 2.5 | W49: 0 | X49: -0.08333333333 | Y49: -0.1666666667 | Z49: -0.25 | AA49: -0.3333333333 | AB49: 0.5833333333 | AC49: 0.5 | AD49: 0.4166666667 | AE49: 0.3333333333 | AF49: 0.25 | AG49: 0.1666666667 | AH49: 0.08333333333 | AI49: 0 | AJ49: -0.08333333333 | AK49: -0.1666666667 | AL49: -0.25 | AM49: -0.3333333333 | AN49: =V49-$Q$38 -> 2.4999 | AR49: 5-l | AS49: 2.5 | AT49: 0 | AU49: -0.08333333333 | AV49: -0.1666666667 | AW49: -0.25 | AX49: -0.3333333333 | AY49: 0.5833333333 | AZ49: 0.5 | BA49: 0.4166666667 | BB49: 0.3333333333 | BC49: 0.25 | BD49: 0.1666666667 | BE49: 0.08333333333 | BF49: 0 | BG49: -0.08333333333 | BH49: -0.1666666667 | BI49: -0.25 | BJ49: -0.3333333333 | BK49: -0.2916666667 | BL49: -0.25 | BM49: -0.2083333333 | BN49: -0.1666666667 | BO49: -0.125 | BP49: -0.08333333333 | BQ49: -0.04166666667 | BR49: 0 | BW49: 5-l | BX49: 2.5 | BY49: 0 | BZ49: -0.10402 | CA49: -0.20718 | CB49: -0.30859 | CC49: -0.40741 | CD49: 0.49725 | CE49: 0.40625 | CF49: 0.32046 | CG49: 0.24074 | CH49: 0.16797 | CI49: 0.10301 | CJ49: 0.04673 | CK49: 0 | CL49: -0.0366 | CM49: -0.06366 | CN49: -0.08203 | CO49: -0.09259 | CP49: -0.09621 | CQ49: -0.09375 | CR49: -0.08608 | CS49: -0.07407 | CT49: -0.05859 | CU49: -0.04051 | CV49: -0.02069 | CW49: 0
B50: 5-r | C50: 2.5 | D50: =IF(D$39<$Q50,-D$35,D$34) -> 0 | E50: -0.08333333333 | F50: -0.1666666667 | G50: -0.25 | H50: -0.3333333333 | I50: -0.4166666667 | J50: 0.5 | K50: 0.4166666667 | L50: 0.3333333333 | M50: 0.25 | N50: 0.1666666667 | O50: 0.08333333333 | P50: 0 | Q50: =C50+$Q$38 -> 2.5001 | U50: 5-r | V50: 2.5 | W50: =IF(W$39<$AN50,-W$35,W$34) -> 0 | X50: -0.08333333333 | Y50: -0.1666666667 | Z50: -0.25 | AA50: -0.3333333333 | AB50: -0.4166666667 | AC50: 0.5 | AD50: 0.4166666667 | AE50: 0.3333333333 | AF50: 0.25 | AG50: 0.1666666667 | AH50: 0.08333333333 | AI50: 0 | AJ50: -0.08333333333 | AK50: -0.1666666667 | AL50: -0.25 | AM50: -0.3333333333 | AN50: =V50+$Q$38 -> 2.5001 | AR50: 5-r | AS50: 2.5 | AT50: =IF(AT$39<$AN50,-AT$35,AT$34) -> 0 | AU50: -0.08333333333 | AV50: -0.1666666667 | AW50: -0.25 | AX50: -0.3333333333 | AY50: -0.4166666667 | AZ50: 0.5 | BA50: 0.4166666667 | BB50: 0.3333333333 | BC50: 0.25 | BD50: 0.1666666667 | BE50: 0.08333333333 | BF50: 0 | BG50: -0.08333333333 | BH50: -0.1666666667 | BI50: -0.25 | BJ50: -0.3333333333 | BK50: -0.2916666667 | BL50: -0.25 | BM50: -0.2083333333 | BN50: -0.1666666667 | BO50: -0.125 | BP50: -0.08333333333 | BQ50: -0.04166666667 | BR50: 0 | BW50: 5-r | BX50: 2.5 | BY50: 0 | BZ50: -0.10402 | CA50: -0.20718 | CB50: -0.30859 | CC50: -0.40741 | CD50: =CD$34-$CA$38 -> -0.50275 | CE50: 0.40625 | CF50: 0.32046 | CG50: 0.24074 | CH50: 0.16797 | CI50: 0.10301 | CJ50: 0.04673 | CK50: 0 | CL50: -0.0366 | CM50: -0.06366 | CN50: -0.08203 | CO50: -0.09259 | CP50: -0.09621 | CQ50: -0.09375 | CR50: -0.08608 | CS50: -0.07407 | CT50: -0.05859 | CU50: -0.04051 | CV50: -0.02069 | CW50: 0
B51: 6-l | C51: 3 | D51: 0 | E51: -0.08333333333 | F51: -0.1666666667 | G51: -0.25 | H51: -0.3333333333 | I51: -0.4166666667 | J51: 0.5 | K51: 0.4166666667 | L51: 0.3333333333 | M51: 0.25 | N51: 0.1666666667 | O51: 0.08333333333 | P51: 0 | Q51: =C51-$Q$38 -> 2.9999 | U51: 6-l | V51: 3 | W51: 0 | X51: -0.08333333333 | Y51: -0.1666666667 | Z51: -0.25 | AA51: -0.3333333333 | AB51: -0.4166666667 | AC51: 0.5 | AD51: 0.4166666667 | AE51: 0.3333333333 | AF51: 0.25 | AG51: 0.1666666667 | AH51: 0.08333333333 | AI51: 0 | AJ51: -0.08333333333 | AK51: -0.1666666667 | AL51: -0.25 | AM51: -0.3333333333 | AN51: =V51-$Q$38 -> 2.9999 | AR51: 6-l | AS51: 3 | AT51: 0 | AU51: -0.08333333333 | AV51: -0.1666666667 | AW51: -0.25 | AX51: -0.3333333333 | AY51: -0.4166666667 | AZ51: 0.5 | BA51: 0.4166666667 | BB51: 0.3333333333 | BC51: 0.25 | BD51: 0.1666666667 | BE51: 0.08333333333 | BF51: 0 | BG51: -0.08333333333 | BH51: -0.1666666667 | BI51: -0.25 | BJ51: -0.3333333333 | BK51: -0.2916666667 | BL51: -0.25 | BM51: -0.2083333333 | BN51: -0.1666666667 | BO51: -0.125 | BP51: -0.08333333333 | BQ51: -0.04166666667 | BR51: 0 | BW51: 6-l | BX51: 3 | BY51: 0 | BZ51: -0.10402 | CA51: -0.20718 | CB51: -0.30859 | CC51: -0.40741 | CD51: -0.50275 | CE51: 0.40625 | CF51: 0.32046 | CG51: 0.24074 | CH51: 0.16797 | CI51: 0.10301 | CJ51: 0.04673 | CK51: 0 | CL51: -0.0366 | CM51: -0.06366 | CN51: -0.08203 | CO51: -0.09259 | CP51: -0.09621 | CQ51: -0.09375 | CR51: -0.08608 | CS51: -0.07407 | CT51: -0.05859 | CU51: -0.04051 | CV51: -0.02069 | CW51: 0
B52: 6-r | C52: 3 | D52: 0 | E52: -0.08333333333 | F52: -0.1666666667 | G52: -0.25 | H52: -0.3333333333 | I52: -0.4166666667 | J52: -0.5 | K52: 0.4166666667 | L52: 0.3333333333 | M52: 0.25 | N52: 0.1666666667 | O52: 0.08333333333 | P52: 0 | Q52: =C52+$Q$38 -> 3.0001 | U52: 6-r | V52: 3 | W52: 0 | X52: -0.08333333333 | Y52: -0.1666666667 | Z52: -0.25 | AA52: -0.3333333333 | AB52: -0.4166666667 | AC52: -0.5 | AD52: 0.4166666667 | AE52: 0.3333333333 | AF52: 0.25 | AG52: 0.1666666667 | AH52: 0.08333333333 | AI52: 0 | AJ52: -0.08333333333 | AK52: -0.1666666667 | AL52: -0.25 | AM52: -0.3333333333 | AN52: =V52+$Q$38 -> 3.0001 | AR52: 6-r | AS52: 3 | AT52: 0 | AU52: -0.08333333333 | AV52: -0.1666666667 | AW52: -0.25 | AX52: -0.3333333333 | AY52: -0.4166666667 | AZ52: -0.5 | BA52: 0.4166666667 | BB52: 0.3333333333 | BC52: 0.25 | BD52: 0.1666666667 | BE52: 0.08333333333 | BF52: 0 | BG52: -0.08333333333 | BH52: -0.1666666667 | BI52: -0.25 | BJ52: -0.3333333333 | BK52: -0.2916666667 | BL52: -0.25 | BM52: -0.2083333333 | BN52: -0.1666666667 | BO52: -0.125 | BP52: -0.08333333333 | BQ52: -0.04166666667 | BR52: 0 | BW52: 6-r | BX52: 3 | BY52: 0 | BZ52: -0.10402 | CA52: -0.20718 | CB52: -0.30859 | CC52: -0.40741 | CD52: -0.50275 | CE52: -0.59375 | CF52: 0.32046 | CG52: 0.24074 | CH52: 0.16797 | CI52: 0.10301 | CJ52: 0.04673 | CK52: 0 | CL52: -0.0366 | CM52: -0.06366 | CN52: -0.08203 | CO52: -0.09259 | CP52: -0.09621 | CQ52: -0.09375 | CR52: -0.08608 | CS52: -0.07407 | CT52: -0.05859 | CU52: -0.04051 | CV52: -0.02069 | CW52: 0
B53: 7-l | C53: 3.5 | D53: 0 | E53: -0.08333333333 | F53: -0.1666666667 | G53: -0.25 | H53: -0.3333333333 | I53: -0.4166666667 | J53: -0.5 | K53: 0.4166666667 | L53: 0.3333333333 | M53: 0.25 | N53: 0.1666666667 | O53: 0.08333333333 | P53: 0 | Q53: =C53-$Q$38 -> 3.4999 | U53: 7-l | V53: 3.5 | W53: 0 | X53: -0.08333333333 | Y53: -0.1666666667 | Z53: -0.25 | AA53: -0.3333333333 | AB53: -0.4166666667 | AC53: -0.5 | AD53: 0.4166666667 | AE53: 0.3333333333 | AF53: 0.25 | AG53: 0.1666666667 | AH53: 0.08333333333 | AI53: 0 | AJ53: -0.08333333333 | AK53: -0.1666666667 | AL53: -0.25 | AM53: -0.3333333333 | AN53: =V53-$Q$38 -> 3.4999 | AR53: 7-l | AS53: 3.5 | AT53: 0 | AU53: -0.08333333333 | AV53: -0.1666666667 | AW53: -0.25 | AX53: -0.3333333333 | AY53: -0.4166666667 | AZ53: -0.5 | BA53: 0.4166666667 | BB53: 0.3333333333 | BC53: 0.25 | BD53: 0.1666666667 | BE53: 0.08333333333 | BF53: 0 | BG53: -0.08333333333 | BH53: -0.1666666667 | BI53: -0.25 | BJ53: -0.3333333333 | BK53: -0.2916666667 | BL53: -0.25 | BM53: -0.2083333333 | BN53: -0.1666666667 | BO53: -0.125 | BP53: -0.08333333333 | BQ53: -0.04166666667 | BR53: 0 | BW53: 7-l | BX53: 3.5 | BY53: 0 | BZ53: -0.10402 | CA53: -0.20718 | CB53: -0.30859 | CC53: -0.40741 | CD53: -0.50275 | CE53: -0.59375 | CF53: 0.32046 | CG53: 0.24074 | CH53: 0.16797 | CI53: 0.10301 | CJ53: 0.04673 | CK53: 0 | CL53: -0.0366 | CM53: -0.06366 | CN53: -0.08203 | CO53: -0.09259 | CP53: -0.09621 | CQ53: -0.09375 | CR53: -0.08608 | CS53: -0.07407 | CT53: -0.05859 | CU53: -0.04051 | CV53: -0.02069 | CW53: 0
B54: 7-r | C54: 3.5 | D54: 0 | E54: -0.08333333333 | F54: -0.1666666667 | G54: -0.25 | H54: -0.3333333333 | I54: -0.4166666667 | J54: -0.5 | K54: -0.5833333333 | L54: 0.3333333333 | M54: 0.25 | N54: 0.1666666667 | O54: 0.08333333333 | P54: 0 | Q54: =C54+$Q$38 -> 3.5001 | U54: 7-r | V54: 3.5 | W54: 0 | X54: -0.08333333333 | Y54: -0.1666666667 | Z54: -0.25 | AA54: -0.3333333333 | AB54: -0.4166666667 | AC54: -0.5 | AD54: -0.5833333333 | AE54: 0.3333333333 | AF54: 0.25 | AG54: 0.1666666667 | AH54: 0.08333333333 | AI54: 0 | AJ54: -0.08333333333 | AK54: -0.1666666667 | AL54: -0.25 | AM54: -0.3333333333 | AN54: =V54+$Q$38 -> 3.5001 | AR54: 7-r | AS54: 3.5 | AT54: 0 | AU54: -0.08333333333 | AV54: -0.1666666667 | AW54: -0.25 | AX54: -0.3333333333 | AY54: -0.4166666667 | AZ54: -0.5 | BA54: -0.5833333333 | BB54: 0.3333333333 | BC54: 0.25 | BD54: 0.1666666667 | BE54: 0.08333333333 | BF54: 0 | BG54: -0.08333333333 | BH54: -0.1666666667 | BI54: -0.25 | BJ54: -0.3333333333 | BK54: -0.2916666667 | BL54: -0.25 | BM54: -0.2083333333 | BN54: -0.1666666667 | BO54: -0.125 | BP54: -0.08333333333 | BQ54: -0.04166666667 | BR54: 0 | BW54: 7-r | BX54: 3.5 | BY54: 0 | BZ54: -0.10402 | CA54: -0.20718 | CB54: -0.30859 | CC54: -0.40741 | CD54: -0.50275 | CE54: -0.59375 | CF54: -0.67954 | CG54: 0.24074 | CH54: 0.16797 | CI54: 0.10301 | CJ54: 0.04673 | CK54: 0 | CL54: -0.0366 | CM54: -0.06366 | CN54: -0.08203 | CO54: -0.09259 | CP54: -0.09621 | CQ54: -0.09375 | CR54: -0.08608 | CS54: -0.07407 | CT54: -0.05859 | CU54: -0.04051 | CV54: -0.02069 | CW54: 0
B55: 8-l | C55: 4 | D55: 0 | E55: -0.08333333333 | F55: -0.1666666667 | G55: -0.25 | H55: -0.3333333333 | I55: -0.4166666667 | J55: -0.5 | K55: -0.5833333333 | L55: 0.3333333333 | M55: 0.25 | N55: 0.1666666667 | O55: 0.08333333333 | P55: 0 | Q55: =C55-$Q$38 -> 3.9999 | U55: 8-l | V55: 4 | W55: 0 | X55: -0.08333333333 | Y55: -0.1666666667 | Z55: -0.25 | AA55: -0.3333333333 | AB55: -0.4166666667 | AC55: -0.5 | AD55: -0.5833333333 | AE55: 0.3333333333 | AF55: 0.25 | AG55: 0.1666666667 | AH55: 0.08333333333 | AI55: 0 | AJ55: -0.08333333333 | AK55: -0.1666666667 | AL55: -0.25 | AM55: -0.3333333333 | AN55: =V55-$Q$38 -> 3.9999 | AR55: 8-l | AS55: 4 | AT55: 0 | AU55: -0.08333333333 | AV55: -0.1666666667 | AW55: -0.25 | AX55: -0.3333333333 | AY55: -0.4166666667 | AZ55: -0.5 | BA55: -0.5833333333 | BB55: 0.3333333333 | BC55: 0.25 | BD55: 0.1666666667 | BE55: 0.08333333333 | BF55: 0 | BG55: -0.08333333333 | BH55: -0.1666666667 | BI55: -0.25 | BJ55: -0.3333333333 | BK55: -0.2916666667 | BL55: -0.25 | BM55: -0.2083333333 | BN55: -0.1666666667 | BO55: -0.125 | BP55: -0.08333333333 | BQ55: -0.04166666667 | BR55: 0 | BW55: 8-l | BX55: 4 | BY55: 0 | BZ55: -0.10402 | CA55: -0.20718 | CB55: -0.30859 | CC55: -0.40741 | CD55: -0.50275 | CE55: -0.59375 | CF55: -0.67954 | CG55: 0.24074 | CH55: 0.16797 | CI55: 0.10301 | CJ55: 0.04673 | CK55: 0 | CL55: -0.0366 | CM55: -0.06366 | CN55: -0.08203 | CO55: -0.09259 | CP55: -0.09621 | CQ55: -0.09375 | CR55: -0.08608 | CS55: -0.07407 | CT55: -0.05859 | CU55: -0.04051 | CV55: -0.02069 | CW55: 0
B56: 8-r | C56: 4 | D56: 0 | E56: -0.08333333333 | F56: -0.1666666667 | G56: -0.25 | H56: -0.3333333333 | I56: -0.4166666667 | J56: -0.5 | K56: -0.5833333333 | L56: -0.6666666667 | M56: 0.25 | N56: 0.1666666667 | O56: 0.08333333333 | P56: 0 | Q56: =C56+$Q$38 -> 4.0001 | U56: 8-r | V56: 4 | W56: 0 | X56: -0.08333333333 | Y56: -0.1666666667 | Z56: -0.25 | AA56: -0.3333333333 | AB56: -0.4166666667 | AC56: -0.5 | AD56: -0.5833333333 | AE56: -0.6666666667 | AF56: 0.25 | AG56: 0.1666666667 | AH56: 0.08333333333 | AI56: 0 | AJ56: -0.08333333333 | AK56: -0.1666666667 | AL56: -0.25 | AM56: -0.3333333333 | AN56: =V56+$Q$38 -> 4.0001 | AR56: 8-r | AS56: 4 | AT56: 0 | AU56: -0.08333333333 | AV56: -0.1666666667 | AW56: -0.25 | AX56: -0.3333333333 | AY56: -0.4166666667 | AZ56: -0.5 | BA56: -0.5833333333 | BB56: -0.6666666667 | BC56: 0.25 | BD56: 0.1666666667 | BE56: 0.08333333333 | BF56: 0 | BG56: -0.08333333333 | BH56: -0.1666666667 | BI56: -0.25 | BJ56: -0.3333333333 | BK56: -0.2916666667 | BL56: -0.25 | BM56: -0.2083333333 | BN56: -0.1666666667 | BO56: -0.125 | BP56: -0.08333333333 | BQ56: -0.04166666667 | BR56: 0 | BW56: 8-r | BX56: 4 | BY56: 0 | BZ56: -0.10402 | CA56: -0.20718 | CB56: -0.30859 | CC56: -0.40741 | CD56: -0.50275 | CE56: -0.59375 | CF56: -0.67954 | CG56: -0.75926 | CH56: 0.16797 | CI56: 0.10301 | CJ56: 0.04673 | CK56: 0 | CL56: -0.0366 | CM56: -0.06366 | CN56: -0.08203 | CO56: -0.09259 | CP56: -0.09621 | CQ56: -0.09375 | CR56: -0.08608 | CS56: -0.07407 | CT56: -0.05859 | CU56: -0.04051 | CV56: -0.02069 | CW56: 0
B57: 9-l | C57: 4.5 | D57: 0 | E57: -0.08333333333 | F57: -0.1666666667 | G57: -0.25 | H57: -0.3333333333 | I57: -0.4166666667 | J57: -0.5 | K57: -0.5833333333 | L57: -0.6666666667 | M57: 0.25 | N57: 0.1666666667 | O57: 0.08333333333 | P57: 0 | Q57: =C57-$Q$38 -> 4.4999 | U57: 9-l | V57: 4.5 | W57: 0 | X57: -0.08333333333 | Y57: -0.1666666667 | Z57: -0.25 | AA57: -0.3333333333 | AB57: -0.4166666667 | AC57: -0.5 | AD57: -0.5833333333 | AE57: -0.6666666667 | AF57: 0.25 | AG57: 0.1666666667 | AH57: 0.08333333333 | AI57: 0 | AJ57: -0.08333333333 | AK57: -0.1666666667 | AL57: -0.25 | AM57: -0.3333333333 | AN57: =V57-$Q$38 -> 4.4999 | AR57: 9-l | AS57: 4.5 | AT57: 0 | AU57: -0.08333333333 | AV57: -0.1666666667 | AW57: -0.25 | AX57: -0.3333333333 | AY57: -0.4166666667 | AZ57: -0.5 | BA57: -0.5833333333 | BB57: -0.6666666667 | BC57: 0.25 | BD57: 0.1666666667 | BE57: 0.08333333333 | BF57: 0 | BG57: -0.08333333333 | BH57: -0.1666666667 | BI57: -0.25 | BJ57: -0.3333333333 | BK57: -0.2916666667 | BL57: -0.25 | BM57: -0.2083333333 | BN57: -0.1666666667 | BO57: -0.125 | BP57: -0.08333333333 | BQ57: -0.04166666667 | BR57: 0 | BW57: 9-l | BX57: 4.5 | BY57: 0 | BZ57: -0.10402 | CA57: -0.20718 | CB57: -0.30859 | CC57: -0.40741 | CD57: -0.50275 | CE57: -0.59375 | CF57: -0.67954 | CG57: -0.75926 | CH57: =CH$34 -> 0.16797 | CI57: 0.10301 | CJ57: 0.04673 | CK57: 0 | CL57: -0.0366 | CM57: -0.06366 | CN57: -0.08203 | CO57: -0.09259 | CP57: -0.09621 | CQ57: -0.09375 | CR57: -0.08608 | CS57: -0.07407 | CT57: -0.05859 | CU57: -0.04051 | CV57: -0.02069 | CW57: 0
B58: 9-r | C58: 4.5 | D58: 0 | E58: -0.08333333333 | F58: -0.1666666667 | G58: -0.25 | H58: -0.3333333333 | I58: -0.4166666667 | J58: -0.5 | K58: -0.5833333333 | L58: -0.6666666667 | M58: -0.75 | N58: 0.1666666667 | O58: 0.08333333333 | P58: 0 | Q58: =C58+$Q$38 -> 4.5001 | U58: 9-r | V58: 4.5 | W58: 0 | X58: -0.08333333333 | Y58: -0.1666666667 | Z58: -0.25 | AA58: -0.3333333333 | AB58: -0.4166666667 | AC58: -0.5 | AD58: -0.5833333333 | AE58: -0.6666666667 | AF58: -0.75 | AG58: 0.1666666667 | AH58: 0.08333333333 | AI58: 0 | AJ58: -0.08333333333 | AK58: -0.1666666667 | AL58: -0.25 | AM58: -0.3333333333 | AN58: =V58+$Q$38 -> 4.5001 | AR58: 9-r | AS58: 4.5 | AT58: 0 | AU58: -0.08333333333 | AV58: -0.1666666667 | AW58: -0.25 | AX58: -0.3333333333 | AY58: -0.4166666667 | AZ58: -0.5 | BA58: -0.5833333333 | BB58: -0.6666666667 | BC58: -0.75 | BD58: 0.1666666667 | BE58: 0.08333333333 | BF58: 0 | BG58: -0.08333333333 | BH58: -0.1666666667 | BI58: -0.25 | BJ58: -0.3333333333 | BK58: -0.2916666667 | BL58: -0.25 | BM58: -0.2083333333 | BN58: -0.1666666667 | BO58: -0.125 | BP58: -0.08333333333 | BQ58: -0.04166666667 | BR58: 0 | BW58: 9-r | BX58: 4.5 | BY58: 0 | BZ58: -0.10402 | CA58: -0.20718 | CB58: -0.30859 | CC58: -0.40741 | CD58: -0.50275 | CE58: -0.59375 | CF58: -0.67954 | CG58: -0.75926 | CH58: -0.83203 | CI58: 0.10301 | CJ58: 0.04673 | CK58: 0 | CL58: -0.0366 | CM58: -0.06366 | CN58: -0.08203 | CO58: -0.09259 | CP58: -0.09621 | CQ58: -0.09375 | CR58: -0.08608 | CS58: -0.07407 | CT58: -0.05859 | CU58: -0.04051 | CV58: -0.02069 | CW58: 0
B59: 10-l | C59: 5 | D59: 0 | E59: -0.08333333333 | F59: -0.1666666667 | G59: -0.25 | H59: -0.3333333333 | I59: -0.4166666667 | J59: -0.5 | K59: -0.5833333333 | L59: -0.6666666667 | M59: -0.75 | N59: 0.1666666667 | O59: 0.08333333333 | P59: 0 | Q59: =C59-$Q$38 -> 4.9999 | U59: 10-l | V59: 5 | W59: 0 | X59: -0.08333333333 | Y59: -0.1666666667 | Z59: -0.25 | AA59: -0.3333333333 | AB59: -0.4166666667 | AC59: -0.5 | AD59: -0.5833333333 | AE59: -0.6666666667 | AF59: -0.75 | AG59: 0.1666666667 | AH59: 0.08333333333 | AI59: 0 | AJ59: -0.08333333333 | AK59: -0.1666666667 | AL59: -0.25 | AM59: -0.3333333333 | AN59: =V59-$Q$38 -> 4.9999 | AR59: 10-l | AS59: 5 | AT59: 0 | AU59: -0.08333333333 | AV59: -0.1666666667 | AW59: -0.25 | AX59: -0.3333333333 | AY59: -0.4166666667 | AZ59: -0.5 | BA59: -0.5833333333 | BB59: -0.6666666667 | BC59: -0.75 | BD59: 0.1666666667 | BE59: 0.08333333333 | BF59: 0 | BG59: -0.08333333333 | BH59: -0.1666666667 | BI59: -0.25 | BJ59: -0.3333333333 | BK59: -0.2916666667 | BL59: -0.25 | BM59: -0.2083333333 | BN59: -0.1666666667 | BO59: -0.125 | BP59: -0.08333333333 | BQ59: -0.04166666667 | BR59: 0 | BW59: 10-l | BX59: 5 | BY59: 0 | BZ59: -0.10402 | CA59: -0.20718 | CB59: -0.30859 | CC59: -0.40741 | CD59: -0.50275 | CE59: -0.59375 | CF59: -0.67954 | CG59: -0.75926 | CH59: -0.83203 | CI59: 0.10301 | CJ59: 0.04673 | CK59: 0 | CL59: -0.0366 | CM59: -0.06366 | CN59: -0.08203 | CO59: -0.09259 | CP59: -0.09621 | CQ59: -0.09375 | CR59: -0.08608 | CS59: -0.07407 | CT59: -0.05859 | CU59: -0.04051 | CV59: -0.02069 | CW59: 0
B60: 10-r | C60: 5 | D60: 0 | E60: -0.08333333333 | F60: -0.1666666667 | G60: -0.25 | H60: -0.3333333333 | I60: -0.4166666667 | J60: -0.5 | K60: -0.5833333333 | L60: -0.6666666667 | M60: -0.75 | N60: -0.8333333333 | O60: 0.08333333333 | P60: 0 | Q60: =C60+$Q$38 -> 5.0001 | U60: 10-r | V60: 5 | W60: 0 | X60: -0.08333333333 | Y60: -0.1666666667 | Z60: -0.25 | AA60: -0.3333333333 | AB60: -0.4166666667 | AC60: -0.5 | AD60: -0.5833333333 | AE60: -0.6666666667 | AF60: -0.75 | AG60: -0.8333333333 | AH60: 0.08333333333 | AI60: 0 | AJ60: -0.08333333333 | AK60: -0.1666666667 | AL60: -0.25 | AM60: -0.3333333333 | AN60: =V60+$Q$38 -> 5.0001 | AR60: 10-r | AS60: 5 | AT60: 0 | AU60: -0.08333333333 | AV60: -0.1666666667 | AW60: -0.25 | AX60: -0.3333333333 | AY60: -0.4166666667 | AZ60: -0.5 | BA60: -0.5833333333 | BB60: -0.6666666667 | BC60: -0.75 | BD60: -0.8333333333 | BE60: 0.08333333333 | BF60: 0 | BG60: -0.08333333333 | BH60: -0.1666666667 | BI60: -0.25 | BJ60: -0.3333333333 | BK60: -0.2916666667 | BL60: -0.25 | BM60: -0.2083333333 | BN60: -0.1666666667 | BO60: -0.125 | BP60: -0.08333333333 | BQ60: -0.04166666667 | BR60: 0 | BW60: 10-r | BX60: 5 | BY60: 0 | BZ60: -0.10402 | CA60: -0.20718 | CB60: -0.30859 | CC60: -0.40741 | CD60: -0.50275 | CE60: -0.59375 | CF60: -0.67954 | CG60: -0.75926 | CH60: -0.83203 | CI60: -0.89699 | CJ60: 0.04673 | CK60: 0 | CL60: -0.0366 | CM60: -0.06366 | CN60: -0.08203 | CO60: -0.09259 | CP60: -0.09621 | CQ60: -0.09375 | CR60: -0.08608 | CS60: -0.07407 | CT60: -0.05859 | CU60: -0.04051 | CV60: -0.02069 | CW60: 0
B61: 11-l | C61: 5.5 | D61: 0 | E61: -0.08333333333 | F61: -0.1666666667 | G61: -0.25 | H61: -0.3333333333 | I61: -0.4166666667 | J61: -0.5 | K61: -0.5833333333 | L61: -0.6666666667 | M61: -0.75 | N61: -0.8333333333 | O61: 0.08333333333 | P61: 0 | Q61: =C61-$Q$38 -> 5.4999 | U61: 11-l | V61: 5.5 | W61: 0 | X61: -0.08333333333 | Y61: -0.1666666667 | Z61: -0.25 | AA61: -0.3333333333 | AB61: -0.4166666667 | AC61: -0.5 | AD61: -0.5833333333 | AE61: -0.6666666667 | AF61: -0.75 | AG61: -0.8333333333 | AH61: 0.08333333333 | AI61: 0 | AJ61: -0.08333333333 | AK61: -0.1666666667 | AL61: -0.25 | AM61: -0.3333333333 | AN61: =V61-$Q$38 -> 5.4999 | AR61: 11-l | AS61: 5.5 | AT61: 0 | AU61: -0.08333333333 | AV61: -0.1666666667 | AW61: -0.25 | AX61: -0.3333333333 | AY61: -0.4166666667 | AZ61: -0.5 | BA61: -0.5833333333 | BB61: -0.6666666667 | BC61: -0.75 | BD61: -0.8333333333 | BE61: 0.08333333333 | BF61: 0 | BG61: -0.08333333333 | BH61: -0.1666666667 | BI61: -0.25 | BJ61: -0.3333333333 | BK61: -0.2916666667 | BL61: -0.25 | BM61: -0.2083333333 | BN61: -0.1666666667 | BO61: -0.125 | BP61: -0.08333333333 | BQ61: -0.04166666667 | BR61: 0 | BW61: 11-l | BX61: 5.5 | BY61: 0 | BZ61: -0.10402 | CA61: -0.20718 | CB61: -0.30859 | CC61: -0.40741 | CD61: -0.50275 | CE61: -0.59375 | CF61: -0.67954 | CG61: -0.75926 | CH61: -0.83203 | CI61: -0.89699 | CJ61: 0.04673 | CK61: 0 | CL61: -0.0366 | CM61: -0.06366 | CN61: -0.08203 | CO61: =CO$34 -> -0.09259 | CP61: -0.09621 | CQ61: -0.09375 | CR61: -0.08608 | CS61: -0.07407 | CT61: -0.05859 | CU61: -0.04051 | CV61: -0.02069 | CW61: 0
B62: 11-r | C62: 5.5 | D62: 0 | E62: -0.08333333333 | F62: -0.1666666667 | G62: -0.25 | H62: -0.3333333333 | I62: -0.4166666667 | J62: -0.5 | K62: -0.5833333333 | L62: -0.6666666667 | M62: -0.75 | N62: -0.8333333333 | O62: -0.9166666667 | P62: 0 | Q62: =C62+$Q$38 -> 5.5001 | U62: 11-r | V62: 5.5 | W62: 0 | X62: -0.08333333333 | Y62: -0.1666666667 | Z62: -0.25 | AA62: -0.3333333333 | AB62: -0.4166666667 | AC62: -0.5 | AD62: -0.5833333333 | AE62: -0.6666666667 | AF62: -0.75 | AG62: -0.8333333333 | AH62: -0.9166666667 | AI62: 0 | AJ62: -0.08333333333 | AK62: -0.1666666667 | AL62: -0.25 | AM62: -0.3333333333 | AN62: =V62+$Q$38 -> 5.5001 | AR62: 11-r | AS62: 5.5 | AT62: 0 | AU62: -0.08333333333 | AV62: -0.1666666667 | AW62: -0.25 | AX62: -0.3333333333 | AY62: -0.4166666667 | AZ62: -0.5 | BA62: -0.5833333333 | BB62: -0.6666666667 | BC62: -0.75 | BD62: -0.8333333333 | BE62: -0.9166666667 | BF62: 0 | BG62: -0.08333333333 | BH62: -0.1666666667 | BI62: -0.25 | BJ62: -0.3333333333 | BK62: -0.2916666667 | BL62: -0.25 | BM62: -0.2083333333 | BN62: -0.1666666667 | BO62: -0.125 | BP62: -0.08333333333 | BQ62: -0.04166666667 | BR62: 0 | BW62: 11-r | BX62: 5.5 | BY62: 0 | BZ62: -0.10402 | CA62: -0.20718 | CB62: -0.30859 | CC62: -0.40741 | CD62: -0.50275 | CE62: -0.59375 | CF62: -0.67954 | CG62: -0.75926 | CH62: -0.83203 | CI62: -0.89699 | CJ62: -0.95327 | CK62: 0 | CL62: =CL$34 -> -0.0366 | CM62: -0.06366 | CN62: -0.08203 | CO62: -0.09259 | CP62: -0.09621 | CQ62: -0.09375 | CR62: -0.08608 | CS62: -0.07407 | CT62: -0.05859 | CU62: -0.04051 | CV62: -0.02069 | CW62: 0
B63: 12-l | C63: 6 | D63: 0 | E63: -0.08333333333 | F63: -0.1666666667 | G63: -0.25 | H63: -0.3333333333 | I63: -0.4166666667 | J63: -0.5 | K63: -0.5833333333 | L63: -0.6666666667 | M63: -0.75 | N63: -0.8333333333 | O63: -0.9166666667 | P63: 0 | Q63: =C63-$Q$38 -> 5.9999 | U63: 12-l | V63: 6 | W63: 0 | X63: -0.08333333333 | Y63: -0.1666666667 | Z63: -0.25 | AA63: -0.3333333333 | AB63: -0.4166666667 | AC63: -0.5 | AD63: -0.5833333333 | AE63: -0.6666666667 | AF63: -0.75 | AG63: -0.8333333333 | AH63: -0.9166666667 | AI63: 0 | AJ63: -0.08333333333 | AK63: -0.1666666667 | AL63: -0.25 | AM63: -0.3333333333 | AN63: =V63-$Q$38 -> 5.9999 | AR63: 12-l | AS63: 6 | AT63: 0 | AU63: -0.08333333333 | AV63: -0.1666666667 | AW63: -0.25 | AX63: -0.3333333333 | AY63: -0.4166666667 | AZ63: -0.5 | BA63: -0.5833333333 | BB63: -0.6666666667 | BC63: -0.75 | BD63: -0.8333333333 | BE63: -0.9166666667 | BF63: 0 | BG63: -0.08333333333 | BH63: -0.1666666667 | BI63: -0.25 | BJ63: -0.3333333333 | BK63: -0.2916666667 | BL63: -0.25 | BM63: -0.2083333333 | BN63: -0.1666666667 | BO63: -0.125 | BP63: -0.08333333333 | BQ63: -0.04166666667 | BR63: 0 | BW63: 12-l | BX63: 6 | BY63: 0 | BZ63: -0.10402 | CA63: -0.20718 | CB63: -0.30859 | CC63: -0.40741 | CD63: -0.50275 | CE63: -0.59375 | CF63: -0.67954 | CG63: -0.75926 | CH63: -0.83203 | CI63: -0.89699 | CJ63: -0.95327 | CK63: 0 | CL63: -0.0366 | CM63: -0.06366 | CN63: -0.08203 | CO63: -0.09259 | CP63: -0.09621 | CQ63: -0.09375 | CR63: -0.08608 | CS63: -0.07407 | CT63: -0.05859 | CU63: -0.04051 | CV63: -0.02069 | CW63: 0
B64: 12-r | U64: 12-r | V64: 6 | W64: 0 | X64: 0 | Y64: 0 | Z64: 0 | AA64: 0 | AB64: 0 | AC64: 0 | AD64: 0 | AE64: 0 | AF64: 0 | AG64: 0 | AH64: 0 | AI64: 0 | AJ64: =$Y$38 -> 1 | AK64: =$Y$38 -> 1 | AL64: 1 | AM64: 1 | AN64: =V64+$Q$38 -> 6.0001 | AR64: 12-r | AS64: 6 | AT64: 0 | AU64: 0 | AV64: 0 | AW64: 0 | AX64: 0 | AY64: 0 | AZ64: 0 | BA64: 0 | BB64: 0 | BC64: 0 | BD64: 0 | BE64: 0 | BF64: 0 | BG64: =$AV$38 -> 1 | BH64: =$AV$38 -> 1 | BI64: 1 | BJ64: 1 | BK64: =BK$35+BK$34 -> 0.875 | BL64: =BL$35+BL$34 -> 0.75 | BM64: 0.625 | BN64: 0.5 | BO64: 0.375 | BP64: 0.25 | BQ64: 0.125 | BR64: 0 | BW64: 12-r | BX64: 6 | BY64: 0 | BZ64: =-BZ$36 -> 0.02069 | CA64: 0.04051 | CB64: 0.05859 | CC64: 0.07407 | CD64: 0.08608 | CE64: 0.09375 | CF64: 0.09621 | CG64: 0.09259 | CH64: 0.08203 | CI64: 0.06366 | CJ64: 0.0366 | CK64: 0 | CL64: =-CL$36+$CA$38 -> 0.95327 | CM64: 0.89699 | CN64: 0.83203 | CO64: 0.75926 | CP64: 0.67954 | CQ64: 0.59375 | CR64: 0.50275 | CS64: 0.40741 | CT64: 0.30859 | CU64: =-CU$36+$CA$38 -> 0.20718 | CV64: 0.10402 | CW64: 0
B65: 13-l | U65: 13-l | V65: 6.5 | W65: 0 | X65: 0 | Y65: 0 | Z65: 0 | AA65: 0 | AB65: 0 | AC65: 0 | AD65: 0 | AE65: 0 | AF65: 0 | AG65: 0 | AH65: 0 | AI65: 0 | AJ65: =$Y$38 -> 1 | AK65: 1 | AL65: 1 | AM65: 1 | AN65: =V65-$Q$38 -> 6.4999 | AR65: 13-l | AS65: 6.5 | AT65: 0 | AU65: 0 | AV65: 0 | AW65: 0 | AX65: 0 | AY65: 0 | AZ65: 0 | BA65: 0 | BB65: 0 | BC65: 0 | BD65: 0 | BE65: 0 | BF65: 0 | BG65: =$AV$38 -> 1 | BH65: 1 | BI65: 1 | BJ65: 1 | BK65: =BK$35+BK$34 -> 0.875 | BL65: 0.75 | BM65: 0.625 | BN65: 0.5 | BO65: 0.375 | BP65: 0.25 | BQ65: 0.125 | BR65: 0 | BW65: 13-l | BX65: 6.5 | BY65: 0 | BZ65: 0.02069 | CA65: 0.04051 | CB65: 0.05859 | CC65: 0.07407 | CD65: 0.08608 | CE65: 0.09375 | CF65: 0.09621 | CG65: 0.09259 | CH65: 0.08203 | CI65: 0.06366 | CJ65: 0.0366 | CK65: 0 | CL65: 0.95327 | CM65: 0.89699 | CN65: 0.83203 | CO65: 0.75926 | CP65: 0.67954 | CQ65: 0.59375 | CR65: 0.50275 | CS65: 0.40741 | CT65: 0.30859 | CU65: 0.20718 | CV65: 0.10402 | CW65: 0
B66: 13-r | U66: 13-r | V66: 6.5 | W66: 0 | X66: 0 | Y66: 0 | Z66: 0 | AA66: 0 | AB66: 0 | AC66: 0 | AD66: 0 | AE66: 0 | AF66: 0 | AG66: 0 | AH66: 0 | AI66: 0 | AJ66: 0 | AK66: 1 | AL66: 1 | AM66: 1 | AN66: =V66+$Q$38 -> 6.5001 | AR66: 13-r | AS66: 6.5 | AT66: 0 | AU66: 0 | AV66: 0 | AW66: 0 | AX66: 0 | AY66: 0 | AZ66: 0 | BA66: 0 | BB66: 0 | BC66: 0 | BD66: 0 | BE66: 0 | BF66: 0 | BG66: 0 | BH66: 1 | BI66: 1 | BJ66: 1 | BK66: 0.875 | BL66: 0.75 | BM66: 0.625 | BN66: 0.5 | BO66: 0.375 | BP66: 0.25 | BQ66: 0.125 | BR66: 0 | BW66: 13-r | BX66: 6.5 | BY66: 0 | BZ66: 0.02069 | CA66: 0.04051 | CB66: 0.05859 | CC66: 0.07407 | CD66: 0.08608 | CE66: 0.09375 | CF66: 0.09621 | CG66: 0.09259 | CH66: 0.08203 | CI66: 0.06366 | CJ66: 0.0366 | CK66: 0 | CL66: -0.04673 | CM66: =-CM$36+$CA$38 -> 0.89699 | CN66: 0.83203 | CO66: 0.75926 | CP66: 0.67954 | CQ66: 0.59375 | CR66: 0.50275 | CS66: 0.40741 | CT66: 0.30859 | CU66: 0.20718 | CV66: 0.10402 | CW66: 0
B67: 14-l | U67: 14-l | V67: 7 | W67: 0 | X67: 0 | Y67: 0 | Z67: 0 | AA67: 0 | AB67: 0 | AC67: 0 | AD67: 0 | AE67: 0 | AF67: 0 | AG67: 0 | AH67: 0 | AI67: 0 | AJ67: 0 | AK67: 1 | AL67: 1 | AM67: 1 | AN67: =V67-$Q$38 -> 6.9999 | AR67: 14-l | AS67: 7 | AT67: 0 | AU67: 0 | AV67: 0 | AW67: 0 | AX67: 0 | AY67: 0 | AZ67: 0 | BA67: 0 | BB67: 0 | BC67: 0 | BD67: 0 | BE67: 0 | BF67: 0 | BG67: 0 | BH67: 1 | BI67: 1 | BJ67: 1 | BK67: 0.875 | BL67: 0.75 | BM67: 0.625 | BN67: 0.5 | BO67: 0.375 | BP67: 0.25 | BQ67: 0.125 | BR67: 0 | BW67: 14-l | BX67: 7 | BY67: 0 | BZ67: 0.02069 | CA67: 0.04051 | CB67: 0.05859 | CC67: 0.07407 | CD67: 0.08608 | CE67: 0.09375 | CF67: 0.09621 | CG67: 0.09259 | CH67: 0.08203 | CI67: 0.06366 | CJ67: 0.0366 | CK67: 0 | CL67: -0.04673 | CM67: 0.89699 | CN67: 0.83203 | CO67: 0.75926 | CP67: 0.67954 | CQ67: 0.59375 | CR67: 0.50275 | CS67: 0.40741 | CT67: 0.30859 | CU67: 0.20718 | CV67: 0.10402 | CW67: 0
B68: 14-r | U68: 14-r | V68: 7 | W68: 0 | X68: 0 | Y68: 0 | Z68: 0 | AA68: 0 | AB68: 0 | AC68: 0 | AD68: 0 | AE68: 0 | AF68: 0 | AG68: 0 | AH68: 0 | AI68: 0 | AJ68: 0 | AK68: 0 | AL68: 1 | AM68: 1 | AN68: =V68+$Q$38 -> 7.0001 | AR68: 14-r | AS68: 7 | AT68: 0 | AU68: 0 | AV68: 0 | AW68: 0 | AX68: 0 | AY68: 0 | AZ68: 0 | BA68: 0 | BB68: 0 | BC68: 0 | BD68: 0 | BE68: 0 | BF68: 0 | BG68: 0 | BH68: 0 | BI68: 1 | BJ68: 1 | BK68: 0.875 | BL68: 0.75 | BM68: 0.625 | BN68: 0.5 | BO68: 0.375 | BP68: 0.25 | BQ68: 0.125 | BR68: 0 | BW68: 14-r | BX68: 7 | BY68: 0 | BZ68: 0.02069 | CA68: 0.04051 | CB68: 0.05859 | CC68: 0.07407 | CD68: 0.08608 | CE68: 0.09375 | CF68: 0.09621 | CG68: 0.09259 | CH68: 0.08203 | CI68: 0.06366 | CJ68: 0.0366 | CK68: 0 | CL68: -0.04673 | CM68: -0.10301 | CN68: 0.83203 | CO68: 0.75926 | CP68: 0.67954 | CQ68: 0.59375 | CR68: 0.50275 | CS68: 0.40741 | CT68: 0.30859 | CU68: 0.20718 | CV68: 0.10402 | CW68: 0
B69: 15-l | U69: 15-l | V69: 7.5 | W69: 0 | X69: 0 | Y69: 0 | Z69: 0 | AA69: 0 | AB69: 0 | AC69: 0 | AD69: 0 | AE69: 0 | AF69: 0 | AG69: 0 | AH69: 0 | AI69: 0 | AJ69: 0 | AK69: 0 | AL69: 1 | AM69: 1 | AN69: =V69-$Q$38 -> 7.4999 | AR69: 15-l | AS69: 7.5 | AT69: 0 | AU69: 0 | AV69: 0 | AW69: 0 | AX69: 0 | AY69: 0 | AZ69: 0 | BA69: 0 | BB69: 0 | BC69: 0 | BD69: 0 | BE69: 0 | BF69: 0 | BG69: 0 | BH69: 0 | BI69: 1 | BJ69: 1 | BK69: 0.875 | BL69: 0.75 | BM69: 0.625 | BN69: 0.5 | BO69: 0.375 | BP69: 0.25 | BQ69: 0.125 | BR69: 0 | BW69: 15-l | BX69: 7.5 | BY69: 0 | BZ69: 0.02069 | CA69: 0.04051 | CB69: 0.05859 | CC69: 0.07407 | CD69: 0.08608 | CE69: 0.09375 | CF69: 0.09621 | CG69: 0.09259 | CH69: 0.08203 | CI69: 0.06366 | CJ69: 0.0366 | CK69: 0 | CL69: -0.04673 | CM69: -0.10301 | CN69: 0.83203 | CO69: 0.75926 | CP69: 0.67954 | CQ69: 0.59375 | CR69: 0.50275 | CS69: 0.40741 | CT69: 0.30859 | CU69: 0.20718 | CV69: 0.10402 | CW69: 0
B70: 15-r | U70: 15-r | V70: 7.5 | W70: 0 | X70: 0 | Y70: 0 | Z70: 0 | AA70: 0 | AB70: 0 | AC70: 0 | AD70: 0 | AE70: 0 | AF70: 0 | AG70: 0 | AH70: 0 | AI70: 0 | AJ70: 0 | AK70: 0 | AL70: 0 | AM70: 1 | AN70: =V70+$Q$38 -> 7.5001 | AR70: 15-r | AS70: 7.5 | AT70: 0 | AU70: 0 | AV70: 0 | AW70: 0 | AX70: 0 | AY70: 0 | AZ70: 0 | BA70: 0 | BB70: 0 | BC70: 0 | BD70: 0 | BE70: 0 | BF70: 0 | BG70: 0 | BH70: 0 | BI70: 0 | BJ70: 1 | BK70: 0.875 | BL70: 0.75 | BM70: 0.625 | BN70: 0.5 | BO70: 0.375 | BP70: 0.25 | BQ70: 0.125 | BR70: 0 | BW70: 15-r | BX70: 7.5 | BY70: 0 | BZ70: 0.02069 | CA70: 0.04051 | CB70: 0.05859 | CC70: 0.07407 | CD70: 0.08608 | CE70: 0.09375 | CF70: 0.09621 | CG70: 0.09259 | CH70: 0.08203 | CI70: 0.06366 | CJ70: 0.0366 | CK70: 0 | CL70: -0.04673 | CM70: -0.10301 | CN70: -0.16797 | CO70: 0.75926 | CP70: 0.67954 | CQ70: 0.59375 | CR70: 0.50275 | CS70: 0.40741 | CT70: 0.30859 | CU70: 0.20718 | CV70: 0.10402 | CW70: 0
B71: 16-l | U71: 16-l | V71: 8 | W71: 0 | X71: 0 | Y71: 0 | Z71: 0 | AA71: 0 | AB71: 0 | AC71: 0 | AD71: 0 | AE71: 0 | AF71: 0 | AG71: 0 | AH71: 0 | AI71: 0 | AJ71: 0 | AK71: 0 | AL71: 0 | AM71: 1 | AN71: =V71-$Q$38 -> 7.9999 | AR71: 16-l | AS71: 8 | AT71: 0 | AU71: 0 | AV71: 0 | AW71: 0 | AX71: 0 | AY71: 0 | AZ71: 0 | BA71: 0 | BB71: 0 | BC71: 0 | BD71: 0 | BE71: 0 | BF71: 0 | BG71: 0 | BH71: 0 | BI71: 0 | BJ71: 1 | BK71: 0.875 | BL71: 0.75 | BM71: 0.625 | BN71: 0.5 | BO71: 0.375 | BP71: 0.25 | BQ71: 0.125 | BR71: 0 | BW71: 16-l | BX71: 8 | BY71: 0 | BZ71: 0.02069 | CA71: 0.04051 | CB71: 0.05859 | CC71: 0.07407 | CD71: 0.08608 | CE71: 0.09375 | CF71: 0.09621 | CG71: 0.09259 | CH71: 0.08203 | CI71: 0.06366 | CJ71: 0.0366 | CK71: 0 | CL71: -0.04673 | CM71: -0.10301 | CN71: -0.16797 | CO71: 0.75926 | CP71: 0.67954 | CQ71: 0.59375 | CR71: 0.50275 | CS71: 0.40741 | CT71: 0.30859 | CU71: 0.20718 | CV71: 0.10402 | CW71: 0
B72: 16-r | U72: 16-r | AR72: 16-r | AS72: 8 | AT72: 0 | AU72: 0 | AV72: 0 | AW72: 0 | AX72: 0 | AY72: 0 | AZ72: 0 | BA72: 0 | BB72: 0 | BC72: 0 | BD72: 0 | BE72: 0 | BF72: 0 | BG72: 0 | BH72: 0 | BI72: 0 | BJ72: 0 | BK72: =BK$71 -> 0.875 | BL72: =BL$71 -> 0.75 | BM72: 0.625 | BN72: 0.5 | BO72: 0.375 | BP72: 0.25 | BQ72: 0.125 | BR72: 0 | BW72: 16-r | BX72: 8 | BY72: 0 | BZ72: 0.02069 | CA72: 0.04051 | CB72: 0.05859 | CC72: 0.07407 | CD72: 0.08608 | CE72: 0.09375 | CF72: 0.09621 | CG72: 0.09259 | CH72: 0.08203 | CI72: 0.06366 | CJ72: 0.0366 | CK72: 0 | CL72: -0.04673 | CM72: -0.10301 | CN72: -0.16797 | CO72: -0.24074 | CP72: 0.67954 | CQ72: 0.59375 | CR72: 0.50275 | CS72: 0.40741 | CT72: 0.30859 | CU72: 0.20718 | CV72: 0.10402 | CW72: 0
B73: 17-l | U73: 17-l | AR73: 17-l | AS73: 8.5 | AT73: 0 | AU73: 0 | AV73: 0 | AW73: 0 | AX73: 0 | AY73: 0 | AZ73: 0 | BA73: 0 | BB73: 0 | BC73: 0 | BD73: 0 | BE73: 0 | BF73: 0 | BG73: 0 | BH73: 0 | BI73: 0 | BJ73: 0 | BK73: =BK$71 -> 0.875 | BL73: 0.75 | BM73: 0.625 | BN73: 0.5 | BO73: 0.375 | BP73: 0.25 | BQ73: 0.125 | BR73: 0 | BW73: 17-l | BX73: 8.5 | BY73: 0 | BZ73: 0.02069 | CA73: 0.04051 | CB73: 0.05859 | CC73: 0.07407 | CD73: 0.08608 | CE73: 0.09375 | CF73: 0.09621 | CG73: 0.09259 | CH73: 0.08203 | CI73: 0.06366 | CJ73: 0.0366 | CK73: 0 | CL73: -0.04673 | CM73: -0.10301 | CN73: -0.16797 | CO73: -0.24074 | CP73: 0.67954 | CQ73: 0.59375 | CR73: 0.50275 | CS73: 0.40741 | CT73: 0.30859 | CU73: 0.20718 | CV73: 0.10402 | CW73: 0
B74: 17-r | U74: 17-r | AR74: 17-r | AS74: 8.5 | AT74: 0 | AU74: 0 | AV74: 0 | AW74: 0 | AX74: 0 | AY74: 0 | AZ74: 0 | BA74: 0 | BB74: 0 | BC74: 0 | BD74: 0 | BE74: 0 | BF74: 0 | BG74: 0 | BH74: 0 | BI74: 0 | BJ74: 0 | BK74: =BK$71-$AV$38 -> -0.125 | BL74: 0.75 | BM74: 0.625 | BN74: 0.5 | BO74: 0.375 | BP74: 0.25 | BQ74: 0.125 | BR74: 0 | BW74: 17-r | BX74: 8.5 | BY74: 0 | BZ74: 0.02069 | CA74: 0.04051 | CB74: 0.05859 | CC74: 0.07407 | CD74: 0.08608 | CE74: 0.09375 | CF74: 0.09621 | CG74: 0.09259 | CH74: 0.08203 | CI74: 0.06366 | CJ74: 0.0366 | CK74: 0 | CL74: -0.04673 | CM74: -0.10301 | CN74: -0.16797 | CO74: -0.24074 | CP74: =-CP$36 -> -0.32046 | CQ74: 0.59375 | CR74: 0.50275 | CS74: 0.40741 | CT74: 0.30859 | CU74: 0.20718 | CV74: 0.10402 | CW74: 0
B75: 18-l | U75: 18-l | AR75: 18-l | AS75: 9 | AT75: 0 | AU75: 0 | AV75: 0 | AW75: 0 | AX75: 0 | AY75: 0 | AZ75: 0 | BA75: 0 | BB75: 0 | BC75: 0 | BD75: 0 | BE75: 0 | BF75: 0 | BG75: 0 | BH75: 0 | BI75: 0 | BJ75: 0 | BK75: =BK$71-$AV$38 -> -0.125 | BL75: 0.75 | BM75: 0.625 | BN75: 0.5 | BO75: 0.375 | BP75: 0.25 | BQ75: 0.125 | BR75: 0 | BW75: 18-l | BX75: 9 | BY75: 0 | BZ75: 0.02069 | CA75: 0.04051 | CB75: 0.05859 | CC75: 0.07407 | CD75: 0.08608 | CE75: 0.09375 | CF75: 0.09621 | CG75: 0.09259 | CH75: 0.08203 | CI75: 0.06366 | CJ75: 0.0366 | CK75: 0 | CL75: -0.04673 | CM75: -0.10301 | CN75: -0.16797 | CO75: -0.24074 | CP75: -0.32046 | CQ75: 0.59375 | CR75: 0.50275 | CS75: 0.40741 | CT75: 0.30859 | CU75: 0.20718 | CV75: 0.10402 | CW75: 0
B76: 18-r | U76: 18-r | AR76: 18-r | AS76: 9 | AT76: 0 | AU76: 0 | AV76: 0 | AW76: 0 | AX76: 0 | AY76: 0 | AZ76: 0 | BA76: 0 | BB76: 0 | BC76: 0 | BD76: 0 | BE76: 0 | BF76: 0 | BG76: 0 | BH76: 0 | BI76: 0 | BJ76: 0 | BK76: -0.125 | BL76: =BL$71-$AV$38 -> -0.25 | BM76: 0.625 | BN76: 0.5 | BO76: 0.375 | BP76: 0.25 | BQ76: 0.125 | BR76: 0 | BW76: 18-r | BX76: 9 | BY76: 0 | BZ76: 0.02069 | CA76: 0.04051 | CB76: 0.05859 | CC76: 0.07407 | CD76: 0.08608 | CE76: 0.09375 | CF76: 0.09621 | CG76: 0.09259 | CH76: 0.08203 | CI76: 0.06366 | CJ76: 0.0366 | CK76: 0 | CL76: -0.04673 | CM76: -0.10301 | CN76: -0.16797 | CO76: -0.24074 | CP76: -0.32046 | CQ76: =-CQ$36 -> -0.40625 | CR76: 0.50275 | CS76: 0.40741 | CT76: 0.30859 | CU76: 0.20718 | CV76: 0.10402 | CW76: 0
B77: 19-l | U77: 19-l | AR77: 19-l | AS77: 9.5 | AT77: 0 | AU77: 0 | AV77: 0 | AW77: 0 | AX77: 0 | AY77: 0 | AZ77: 0 | BA77: 0 | BB77: 0 | BC77: 0 | BD77: 0 | BE77: 0 | BF77: 0 | BG77: 0 | BH77: 0 | BI77: 0 | BJ77: 0 | BK77: -0.125 | BL77: -0.25 | BM77: 0.625 | BN77: 0.5 | BO77: 0.375 | BP77: 0.25 | BQ77: 0.125 | BR77: 0 | BW77: 19-l | BX77: 9.5 | BY77: 0 | BZ77: 0.02069 | CA77: 0.04051 | CB77: 0.05859 | CC77: 0.07407 | CD77: 0.08608 | CE77: 0.09375 | CF77: 0.09621 | CG77: 0.09259 | CH77: 0.08203 | CI77: 0.06366 | CJ77: 0.0366 | CK77: 0 | CL77: -0.04673 | CM77: -0.10301 | CN77: -0.16797 | CO77: -0.24074 | CP77: -0.32046 | CQ77: -0.40625 | CR77: 0.50275 | CS77: 0.40741 | CT77: 0.30859 | CU77: 0.20718 | CV77: 0.10402 | CW77: 0
B78: 19-r | U78: 19-r | AR78: 19-r | AS78: 9.5 | AT78: 0 | AU78: 0 | AV78: 0 | AW78: 0 | AX78: 0 | AY78: 0 | AZ78: 0 | BA78: 0 | BB78: 0 | BC78: 0 | BD78: 0 | BE78: 0 | BF78: 0 | BG78: 0 | BH78: 0 | BI78: 0 | BJ78: 0 | BK78: -0.125 | BL78: -0.25 | BM78: =BM$71-$AV$38 -> -0.375 | BN78: 0.5 | BO78: 0.375 | BP78: 0.25 | BQ78: 0.125 | BR78: 0 | BW78: 19-r | BX78: 9.5 | BY78: 0 | BZ78: 0.02069 | CA78: 0.04051 | CB78: 0.05859 | CC78: 0.07407 | CD78: 0.08608 | CE78: 0.09375 | CF78: 0.09621 | CG78: 0.09259 | CH78: 0.08203 | CI78: 0.06366 | CJ78: 0.0366 | CK78: 0 | CL78: -0.04673 | CM78: -0.10301 | CN78: -0.16797 | CO78: -0.24074 | CP78: -0.32046 | CQ78: -0.40625 | CR78: =-CR$36 -> -0.49725 | CS78: 0.40741 | CT78: 0.30859 | CU78: 0.20718 | CV78: 0.10402 | CW78: 0
B79: 20-l | U79: 20-l | AR79: 20-l | AS79: 10 | AT79: 0 | AU79: 0 | AV79: 0 | AW79: 0 | AX79: 0 | AY79: 0 | AZ79: 0 | BA79: 0 | BB79: 0 | BC79: 0 | BD79: 0 | BE79: 0 | BF79: 0 | BG79: 0 | BH79: 0 | BI79: 0 | BJ79: 0 | BK79: -0.125 | BL79: -0.25 | BM79: -0.375 | BN79: 0.5 | BO79: 0.375 | BP79: 0.25 | BQ79: 0.125 | BR79: 0 | BW79: 20-l | BX79: 10 | BY79: 0 | BZ79: 0.02069 | CA79: 0.04051 | CB79: 0.05859 | CC79: 0.07407 | CD79: 0.08608 | CE79: 0.09375 | CF79: 0.09621 | CG79: 0.09259 | CH79: 0.08203 | CI79: 0.06366 | CJ79: 0.0366 | CK79: 0 | CL79: -0.04673 | CM79: -0.10301 | CN79: -0.16797 | CO79: -0.24074 | CP79: -0.32046 | CQ79: -0.40625 | CR79: -0.49725 | CS79: 0.40741 | CT79: 0.30859 | CU79: 0.20718 | CV79: 0.10402 | CW79: 0
B80: 20-r | U80: 20-r | AR80: 20-r | AS80: 10 | AT80: 0 | AU80: 0 | AV80: 0 | AW80: 0 | AX80: 0 | AY80: 0 | AZ80: 0 | BA80: 0 | BB80: 0 | BC80: 0 | BD80: 0 | BE80: 0 | BF80: 0 | BG80: 0 | BH80: 0 | BI80: 0 | BJ80: 0 | BK80: -0.125 | BL80: -0.25 | BM80: -0.375 | BN80: =BN71-$AV$38 -> -0.5 | BO80: 0.375 | BP80: 0.25 | BQ80: 0.125 | BR80: 0 | BW80: 20-r | BX80: 10 | BY80: 0 | BZ80: 0.02069 | CA80: 0.04051 | CB80: 0.05859 | CC80: 0.07407 | CD80: 0.08608 | CE80: 0.09375 | CF80: 0.09621 | CG80: 0.09259 | CH80: 0.08203 | CI80: 0.06366 | CJ80: 0.0366 | CK80: 0 | CL80: -0.04673 | CM80: -0.10301 | CN80: -0.16797 | CO80: -0.24074 | CP80: -0.32046 | CQ80: -0.40625 | CR80: -0.49725 | CS80: =-CS$36 -> -0.59259 | CT80: 0.30859 | CU80: 0.20718 | CV80: 0.10402 | CW80: 0
B81: 21-l | U81: 21-l | AR81: 21-l | AS81: 10.5 | AT81: 0 | AU81: 0 | AV81: 0 | AW81: 0 | AX81: 0 | AY81: 0 | AZ81: 0 | BA81: 0 | BB81: 0 | BC81: 0 | BD81: 0 | BE81: 0 | BF81: 0 | BG81: 0 | BH81: 0 | BI81: 0 | BJ81: 0 | BK81: -0.125 | BL81: -0.25 | BM81: -0.375 | BN81: =BN72-$AV$38 -> -0.5 | BO81: 0.375 | BP81: 0.25 | BQ81: 0.125 | BR81: 0 | BW81: 21-l | BX81: 10.5 | BY81: 0 | BZ81: 0.02069 | CA81: 0.04051 | CB81: 0.05859 | CC81: =-CC$36 -> 0.07407 | CD81: 0.08608 | CE81: 0.09375 | CF81: 0.09621 | CG81: 0.09259 | CH81: 0.08203 | CI81: 0.06366 | CJ81: 0.0366 | CK81: 0 | CL81: -0.04673 | CM81: -0.10301 | CN81: -0.16797 | CO81: -0.24074 | CP81: -0.32046 | CQ81: -0.40625 | CR81: -0.49725 | CS81: -0.59259 | CT81: 0.30859 | CU81: 0.20718 | CV81: 0.10402 | CW81: 0
B82: 21-r | U82: 21-r | AR82: 21-r | AS82: 10.5 | AT82: 0 | AU82: 0 | AV82: 0 | AW82: 0 | AX82: 0 | AY82: 0 | AZ82: 0 | BA82: 0 | BB82: 0 | BC82: 0 | BD82: 0 | BE82: 0 | BF82: 0 | BG82: 0 | BH82: 0 | BI82: 0 | BJ82: 0 | BK82: -0.125 | BL82: -0.25 | BM82: -0.375 | BN82: -0.5 | BO82: =BO$71-$AV$38 -> -0.625 | BP82: 0.25 | BQ82: 0.125 | BR82: 0 | BW82: 21-r | BX82: 10.5 | BY82: 0 | BZ82: =-BZ$36 -> 0.02069 | CA82: 0.04051 | CB82: 0.05859 | CC82: 0.07407 | CD82: 0.08608 | CE82: 0.09375 | CF82: 0.09621 | CG82: 0.09259 | CH82: 0.08203 | CI82: 0.06366 | CJ82: 0.0366 | CK82: 0 | CL82: -0.04673 | CM82: -0.10301 | CN82: -0.16797 | CO82: -0.24074 | CP82: -0.32046 | CQ82: -0.40625 | CR82: -0.49725 | CS82: -0.59259 | CT82: =-CT$36 -> -0.69141 | CU82: 0.20718 | CV82: 0.10402 | CW82: 0
B83: 22-l | U83: 22-l | AR83: 22-l | AS83: 11 | AT83: 0 | AU83: 0 | AV83: 0 | AW83: 0 | AX83: 0 | AY83: 0 | AZ83: 0 | BA83: 0 | BB83: 0 | BC83: 0 | BD83: 0 | BE83: 0 | BF83: 0 | BG83: 0 | BH83: 0 | BI83: 0 | BJ83: 0 | BK83: -0.125 | BL83: -0.25 | BM83: -0.375 | BN83: -0.5 | BO83: =BO$71-$AV$38 -> -0.625 | BP83: 0.25 | BQ83: 0.125 | BR83: 0 | BW83: 22-l | BX83: 11 | BY83: 0 | BZ83: 0.02069 | CA83: 0.04051 | CB83: 0.05859 | CC83: 0.07407 | CD83: 0.08608 | CE83: 0.09375 | CF83: 0.09621 | CG83: 0.09259 | CH83: 0.08203 | CI83: 0.06366 | CJ83: 0.0366 | CK83: 0 | CL83: -0.04673 | CM83: -0.10301 | CN83: -0.16797 | CO83: -0.24074 | CP83: -0.32046 | CQ83: -0.40625 | CR83: -0.49725 | CS83: -0.59259 | CT83: -0.69141 | CU83: =-CU$36+$CA$38 -> 0.20718 | CV83: 0.10402 | CW83: 0
B84: 22-r | U84: 22-r | AR84: 22-r | AS84: 11 | AT84: 0 | AU84: 0 | AV84: 0 | AW84: 0 | AX84: 0 | AY84: 0 | AZ84: 0 | BA84: 0 | BB84: 0 | BC84: 0 | BD84: 0 | BE84: 0 | BF84: 0 | BG84: 0 | BH84: 0 | BI84: 0 | BJ84: 0 | BK84: -0.125 | BL84: -0.25 | BM84: -0.375 | BN84: -0.5 | BO84: -0.625 | BP84: =BP$71-$AV$38 -> -0.75 | BQ84: 0.125 | BR84: 0 | BW84: 22-r | BX84: 11 | BY84: 0 | BZ84: 0.02069 | CA84: 0.04051 | CB84: 0.05859 | CC84: 0.07407 | CD84: 0.08608 | CE84: 0.09375 | CF84: 0.09621 | CG84: 0.09259 | CH84: 0.08203 | CI84: 0.06366 | CJ84: 0.0366 | CK84: 0 | CL84: -0.04673 | CM84: -0.10301 | CN84: -0.16797 | CO84: -0.24074 | CP84: -0.32046 | CQ84: -0.40625 | CR84: -0.49725 | CS84: -0.59259 | CT84: -0.69141 | CU84: =-CU$36 -> -0.79282 | CV84: 0.10402 | CW84: 0
B85: 23-l | U85: 23-l | AR85: 23-l | AS85: 11.5 | AT85: 0 | AU85: 0 | AV85: 0 | AW85: 0 | AX85: 0 | AY85: 0 | AZ85: 0 | BA85: 0 | BB85: 0 | BC85: 0 | BD85: 0 | BE85: 0 | BF85: 0 | BG85: 0 | BH85: 0 | BI85: 0 | BJ85: 0 | BK85: -0.125 | BL85: -0.25 | BM85: -0.375 | BN85: -0.5 | BO85: -0.625 | BP85: -0.75 | BQ85: 0.125 | BR85: 0 | BW85: 23-l | BX85: 11.5 | BY85: 0 | BZ85: 0.02069 | CA85: 0.04051 | CB85: 0.05859 | CC85: 0.07407 | CD85: 0.08608 | CE85: 0.09375 | CF85: 0.09621 | CG85: 0.09259 | CH85: 0.08203 | CI85: 0.06366 | CJ85: 0.0366 | CK85: 0 | CL85: -0.04673 | CM85: -0.10301 | CN85: -0.16797 | CO85: -0.24074 | CP85: -0.32046 | CQ85: -0.40625 | CR85: -0.49725 | CS85: -0.59259 | CT85: -0.69141 | CU85: =-CU$36 -> -0.79282 | CV85: 0.10402 | CW85: 0
B86: 23-r | U86: 23-r | AR86: 23-r | AS86: 11.5 | AT86: 0 | AU86: 0 | AV86: 0 | AW86: 0 | AX86: 0 | AY86: 0 | AZ86: 0 | BA86: 0 | BB86: 0 | BC86: 0 | BD86: 0 | BE86: 0 | BF86: 0 | BG86: 0 | BH86: 0 | BI86: 0 | BJ86: 0 | BK86: -0.125 | BL86: -0.25 | BM86: -0.375 | BN86: -0.5 | BO86: -0.625 | BP86: -0.75 | BQ86: =BQ$71-$AV$38 -> -0.875 | BR86: 0 | BW86: 23-r | BX86: 11.5 | BY86: 0 | BZ86: 0.02069 | CA86: 0.04051 | CB86: 0.05859 | CC86: 0.07407 | CD86: 0.08608 | CE86: 0.09375 | CF86: 0.09621 | CG86: 0.09259 | CH86: 0.08203 | CI86: 0.06366 | CJ86: 0.0366 | CK86: 0 | CL86: -0.04673 | CM86: -0.10301 | CN86: -0.16797 | CO86: -0.24074 | CP86: -0.32046 | CQ86: -0.40625 | CR86: -0.49725 | CS86: -0.59259 | CT86: -0.69141 | CU86: =-CU$36 -> -0.79282 | CV86: =-CV$36 -> -0.89598 | CW86: 0
B87: 24-l | U87: 24-l | AR87: 24-l | AS87: 12 | AT87: 0 | AU87: 0 | AV87: 0 | AW87: 0 | AX87: 0 | AY87: 0 | AZ87: 0 | BA87: 0 | BB87: 0 | BC87: 0 | BD87: 0 | BE87: 0 | BF87: 0 | BG87: 0 | BH87: 0 | BI87: 0 | BJ87: 0 | BK87: -0.125 | BL87: -0.25 | BM87: -0.375 | BN87: -0.5 | BO87: -0.625 | BP87: -0.75 | BQ87: =BQ$71-$AV$38 -> -0.875 | BR87: 0 | BW87: 24-l | BX87: 12 | BY87: 0 | BZ87: 0.02069 | CA87: 0.04051 | CB87: 0.05859 | CC87: 0.07407 | CD87: 0.08608 | CE87: 0.09375 | CF87: 0.09621 | CG87: 0.09259 | CH87: 0.08203 | CI87: 0.06366 | CJ87: 0.0366 | CK87: 0 | CL87: -0.04673 | CM87: -0.10301 | CN87: -0.16797 | CO87: -0.24074 | CP87: -0.32046 | CQ87: -0.40625 | CR87: -0.49725 | CS87: -0.59259 | CT87: -0.69141 | CU87: =-CU$36 -> -0.79282 | CV87: =-CV$36 -> -0.89598 | CW87: 0

Sheet GD1
A1: 1 | B1: 2 | C1: 3 | D1: 4 | E1: 5 | F1: 6 | G1: 7 | H1: 8 | I1: 9 | J1: 10 | K1: 11 | L1: 12 | M1: 13 | N1: 14 | O1: 15 | P1: 16
B2: Systemdaten
B3: System | C3: Schnitte 1 | D3: Schnitte 2 | E3: Lageranz. | F3: Lager 1 | G3: Lager 2 | H3: Lager 3 | I3: Pos M (Z) | J3: Pos M (S) | K3: Pos A (Z) | L3: Pos A (S) | M3: Pos Q (Z) | N3: Pos Q (S) | O3: Bezeichnung | P3: Ges.-länge
B4: 1 | C4: 12 | D4: 22 | E4: 2 | F4: 0 | G4: 6 | I4: 5 | J4: 3 | K4: 33 | L4: 3 | M4: 39 | N4: 3 | O4: Einfeldträger | P4: 6
B5: 2 | C5: 16 | D5: 30 | E5: 2 | F5: 0 | G5: 6 | I5: 5 | J5: 22 | K5: 33 | L5: 22 | M5: 39 | N5: 22 | O5: Einfeldträger mit Kragarm | P5: 8
B6: 3 | C6: 24 | D6: 46 | E6: 3 | F6: 0 | G6: 6 | H6: 12 | I6: 5 | J6: 45 | K6: 33 | L6: 45 | M6: 39 | N6: 45 | O6: 2-feldriger Gelenkträger | P6: 12
B7: 4 | C7: 24 | D7: 46 | E7: 3 | F7: 0 | G7: 6 | H7: 12 | I7: 5 | J7: 76 | K7: 33 | L7: 76 | M7: 39 | N7: 76 | O7: Zweifeldträger | P7: 12
B9: Eingabedaten | D9: Auswahl | E9: Extr.-wert | F9: Geom | H9: Eingabedaten | J9: Auswahl | K9: Schnitt | L9: Geom
B10: Gewähltes System | D10: 2 | E10: 4 | F10: =IF(D10=1,P4,IF(D10=2,P5,IF(D10=3,P6,P7))) -> 8 | H10: Art der Einf.-linie | J10: 1 | K10: 6 | L10: =K10/E11*F10 -> 3
B11: Gew. Laststellung | D11: 0 | E11: =VLOOKUP(D10,B4:D7,2) -> 16 | F11: =D11/E11*F10 -> 0 | I11: 1 = | J11: Biegemoment
B12: Gew. Lastfaktor | D12: 101 | E12: {-100/100} | F12: =D12-100 -> 1 | I12: 2 = | J12: Auflagerkraft | L12: Links v.S. | M12: Rechts
B13: Gew. E-Linie | D13: =J10*1 -> 1 | E13: 3 | I13: 3 = | J13: Querkraft | K13: =IF(L13,0,1)*1 -> 0 | L13: TRUE | M13: FALSE
B14: Hilfsgrößen | D14: Einfeldträger mit Kragarm | H14: Hilfsgrößen | J14: Biegemoment
B16: extr. Schnittgrößen | J16: Diagrammdaten
B17: System | C17: min M | D17: max M | E17: min A | F17: max A | G17: min Q | H17: max Q | J17: System | K17: x-Wert | L17: EL-Wert
B18: 1 | C18: 0 | D18: =F12*P4/4 -> 1.5 | E18: =G18 -> -1 | F18: 1 | G18: =-F12 -> -1 | H18: =F12 -> 1 | J18: 0 | K18: 0 | L18: 0
B19: 2 | C19: =-F12*2 -> -2 | D19: =D18 -> 1.5 | E19: -1 | F19: =F18*4/3 -> 1.333333333 | G19: =G18 -> -1 | H19: =H18*4/3 -> 1.333333333 | J19: 1 | K19: 0.5 | L19: 0
B20: 3 | C20: =C19 -> -2 | D20: =D18 -> 1.5 | E20: -1 | F20: 1.333333333 | G20: =G19 -> -1 | H20: =H19 -> 1.333333333 | J20: 2 | K20: 1 | L20: 0
B21: 4 | C21: =C20/3 -> -0.6666666667 | D21: =F12*4/3 -> 1.333333333 | E21: -1 | F21: 1 | G21: =G18 -> -1 | H21: =H18 -> 1 | J21: 3 | K21: 1.5 | L21: 0
J22: 4 | K22: 2 | L22: 0
B23: Diagrammdaten | J23: 5 | K23: 2.5 | L23: 0
C24: x-Wert | D24: EL-Wert | G24: x-Wert | H24: EL-Wert | J24: 6 | K24: 3 | L24: 0
B25: Linie 0 | C25: 0 | D25: 0 | F25: Linie 13 | G25: =C49+0.5 -> 6.5 | H25: 0 | J25: 7 | K25: 3.5 | L25: 0
C26: 0 | D26: =L18 -> 0 | G26: =C50+0.5 -> 6.5 | H26: =L31 -> 0 | J26: 8 | K26: 4 | L26: 0
B27: Linie 1 | C27: =C25+0.5 -> 0.5 | D27: 0 | F27: Linie 14 | G27: =G25+0.5 -> 7 | H27: 0 | J27: 9 | K27: 4.5 | L27: 0
C28: 0.5 | D28: =L19 -> 0 | G28: 7 | H28: =L32 -> 0 | J28: 10 | K28: 5 | L28: 0
B29: Linie 2 | C29: 1 | D29: 0 | F29: Linie 15 | G29: 7.5 | H29: 0 | J29: 11 | K29: 5.5 | L29: 0
C30: 1 | D30: =L20 -> 0 | G30: 7.5 | H30: =L33 -> 0 | J30: 12 | K30: 6 | L30: 0
B31: Linie 3 | C31: 1.5 | D31: 0 | F31: Linie 16 | G31: 8 | H31: 0 | J31: 13 | K31: 6.5 | L31: 0
C32: 1.5 | D32: =L21 -> 0 | G32: 8 | H32: =L34 -> 0 | J32: 14 | K32: 7 | L32: 0
B33: Linie 4 | C33: 2 | D33: 0 | F33: Linie 17 | G33: 8.5 | H33: 0 | J33: 15 | K33: 7.5 | L33: 0
C34: 2 | D34: =L22 -> 0 | G34: 8.5 | H34: =L35 -> 0 | J34: 16 | K34: 8 | L34: 0
B35: Linie 5 | C35: 2.5 | D35: 0 | F35: Linie 18 | G35: 9 | H35: 0 | J35: 17 | K35: 8.5 | L35: 0
C36: 2.5 | D36: =L23 -> 0 | G36: 9 | H36: =L36 -> 0 | J36: 18 | K36: 9 | L36: 0
B37: Linie 6 | C37: 3 | D37: 0 | F37: Linie 19 | G37: 9.5 | H37: 0 | J37: 19 | K37: 9.5 | L37: 0
C38: 3 | D38: =L24 -> 0 | G38: 9.5 | H38: =L37 -> 0 | J38: 20 | K38: 10 | L38: 0
B39: Linie 7 | C39: 3.5 | D39: 0 | F39: Linie 20 | G39: 10 | H39: 0 | J39: 21 | K39: 10.5 | L39: 0
C40: 3.5 | D40: =L25 -> 0 | G40: 10 | H40: =L38 -> 0 | J40: 22 | K40: 11 | L40: 0
B41: Linie 8 | C41: 4 | D41: 0 | F41: Linie 21 | G41: 10.5 | H41: 0 | J41: 23 | K41: 11.5 | L41: 0
C42: 4 | D42: =L26 -> 0 | G42: 10.5 | H42: =L39 -> 0 | J42: 24 | K42: 12 | L42: 0
B43: Linie 9 | C43: 4.5 | D43: 0 | F43: Linie 22 | G43: 11 | H43: 0 | L43: =VLOOKUP(D11,J18:L42,3) -> 0
C44: 4.5 | D44: =L27 -> 0 | G44: 11 | H44: =L40 -> 0
B45: Linie 10 | C45: 5 | D45: 0 | F45: Linie 23 | G45: 11.5 | H45: 0
C46: 5 | D46: =L28 -> 0 | G46: 11.5 | H46: =L41 -> 0
B47: Linie 11 | C47: 5.5 | D47: 0 | F47: Linie 24 | G47: 12 | H47: 0
C48: 5.5 | D48: =L29 -> 0 | G48: 12 | H48: =L42 -> 0
B49: Linie 12 | C49: 6 | D49: 0
C50: 6 | D50: =L30 -> 0
B53: Diagrammdaten
C54: x-Wert | D54: EL-Wert | G54: x-Wert | H54: EL-Wert
B55: H-Linie1 | C55: =F11 -> 0 | D55: =L43 -> 0 | F55: H-LinieE | G55: =C58 -> 3 | H55: =P43 -> 0
C56: =F10 -> 8 | D56: =D55 -> 0 | G56: =G55 -> 3 | H56: =D55 -> 0
B57: H-Linie2 | C57: 0 | D57: =D55 -> 0
C58: =L10 -> 3 | D58: =D57 -> 0
